Workbook

Sheet Stavba
C2: Položkový rozpočet stavby | H2: Datum: | I2: =TODAY() -> 2024-04-22
C5: Stavba : | D5: 3392 | E5: Chuchelna - optimalizace vodovodní soustavy
C7: Objednatel : | D7: Vodohospodářské sdružení Turnov | H7: IČO : | I7: 49295934
D8: Antonína Dvořáka 287 | H8: DIČ : | I8: CZ49295934
C9: 51101 | D9: Turnov
C11: Zhotovitel : | D11: . | H11: IČO :
H12: DIČ :
C14: Za zhotovitele : | H14: Za objednatele :
C16: _______________ | H16: _______________
J18: Rozpočtové náklady
B19: Základ pro DPH | D19: 15 | E19: % | I19: =ROUND(G36,0) -> 0
B20: DPH | D20: =SazbaDPH1 -> 15 | E20: % | I20: =ROUND(I19*D20/100,0) -> 0
B21: Základ pro DPH | D21: 21 | E21: % | I21: =ROUND(H36,0) -> 100000
B22: DPH | D22: =SazbaDPH2 -> 21 | E22: % | I22: =ROUND(I21*D21/100,0) -> 21000
B23: Cena celkem za stavbu | I23: =SUM(I19:I22) -> 121000
B26: Rekapitulace stavebních objektů a provozních souborů
B28: Číslo a název objektu / provozního souboru | F28: Cena celkem | G28: =CONCATENATE("Základ DPH ",SazbaDPH1," %") -> Základ DPH 15 % | H28: =CONCATENATE("Základ DPH ",SazbaDPH2," %") -> Základ DPH 21 % | I28: DPH celkem | J28: %
B29: 001 | C29: Rozdělení tlakových pásem | F29: =G29+H29+I29 -> 0 | G29: 0 | H29: =SUM(H41) -> 0 | I29: =(G29*SazbaDPH1)/100+(H29*SazbaDPH2)/100 -> 0 | J29: =IF(CelkemObjekty=0,"",F29/CelkemObjekty*100) -> 0
B30: 002 | C30: Chuchelna - zaslepení vodovodu | F30: =G30+H30+I30 -> 0 | G30: 0 | H30: =SUM(H42) -> 0 | I30: 0 | J30: 0
B31: 003 | C31: Redukční šachta RŠ Klinkovice u čp.22 | F31: 0 | G31: 0 | H31: =SUM(H43) -> 0 | I31: 0 | J31: 0
B32: 004 | C32: Redukční šachta RŠ Klinkovice u čp.144 | F32: 0 | G32: 0 | H32: =SUM(H44) -> 0 | I32: 0 | J32: 0
B33: 005 | C33: Chuchelna - propojení vodovodu | F33: 0 | G33: 0 | H33: =SUM(H45) -> 0 | I33: 0 | J33: 0
B34: OaVNS | C34: Ostatní a vedlejší náklady stavby | F34: 0 | G34: 0 | H34: =SUM(OaVNS!G30) -> 0 | I34: 0 | J34: 0
B35: PR | C35: Povinná rezerva | F35: 121000 | G35: 0 | H35: 100000 | I35: 21000 | J35: 100
B36: Celkem za stavbu | F36: =SUM(F29:F35) -> 121000 | G36: =SUM(G29:G35) -> 0 | H36: =SUM(H29:H35) -> 100000 | I36: =SUM(I29:I35) -> 21000 | J36: =IF(CelkemObjekty=0,"",F36/CelkemObjekty*100) -> 100
B38: Rekapitulace stavebních rozpočtů
B40: Číslo objektu | C40: Číslo a název rozpočtu | F40: Cena celkem | G40: =CONCATENATE("Základ DPH ",SazbaDPH1," %") -> Základ DPH 15 % | H40: =CONCATENATE("Základ DPH ",SazbaDPH2," %") -> Základ DPH 21 % | I40: DPH celkem | J40: %
B41: 001 | C41: 3392/001 Rozdělení tlakových pásem | F41: =G41+H41+I41 -> 0 | G41: 0 | H41: =SUM('001 3392001 KL'!C23) -> 0 | I41: =(G41*SazbaDPH1)/100+(H41*SazbaDPH2)/100 -> 0 | J41: =IF(CelkemObjekty=0,"",F41/CelkemObjekty*100) -> 0
B42: 002 | C42: 3392/002 Chuchelna - zaslepení vodovodu | F42: =G42+H42+I42 -> 0 | G42: 0 | H42: =SUM('002 3392002 KL'!C23) -> 0 | I42: 0 | J42: 0
B43: 003 | C43: 3392/003 Redukční šachta RŠ Klinkovice u čp.22 | F43: 0 | G43: 0 | H43: =SUM('003 3392003 KL'!C23) -> 0 | I43: 0 | J43: 0
B44: 004 | C44: 3392/004 Redukční šachta RŠ Klinkovice u čp.144 | F44: 0 | G44: 0 | H44: =SUM('004 3392004 KL'!C23) -> 0 | I44: 0 | J44: 0
B45: 005 | C45: 3392/005 Chuchelna - propojení vodovodu | F45: 0 | G45: 0 | H45: =SUM('005 3392005 KL'!C23) -> 0 | I45: 0 | J45: 0
B46: Celkem za stavbu | F46: =SUM(F41:F45) -> 0 | G46: =SUM(G41:G45) -> 0 | H46: =SUM(H41:H45) -> 0 | I46: =SUM(I41:I45) -> 0 | J46: =IF(CelkemObjekty=0,"",F46/CelkemObjekty*100) -> 0

Sheet 001 3392001 KL
A1: POLOŽKOVÝ ROZPOČET
A2: Rozpočet | C2: 3392/001 | D2: Rozdělení tlakových pásem | F2: JKSO | G2: 827.11
A4: Objekt | F4: SKP
A5: 001 | C5: Rozdělení tlakových pásem | F5: Měrná jednotka | G5: m
A6: Stavba | F6: Počet jednotek | G6: 0
A7: 3392 | C7: Chuchelna - optimalizace vodovodní soustavy | F7: Náklady na m.j. | G7: =IF(G6=0,,ROUND((F30+F32)/G6,1)) -> 0
A8: Projektant | C8: Radek Hnát - VAK PROJEKT | F8: Typ rozpočtu
A9: Zpracovatel projektu
A10: Objednatel | C10: Vodohospodářské sdružení Turnov
A11: Dodavatel | C11: . | F11: Zakázkové číslo
A12: Rozpočtoval | F12: Počet listů
A13: ROZPOČTOVÉ NÁKLADY
A14: Základní rozpočtové náklady
B15: HSV celkem | C15: ='001 3392001 Rek'!E8 -> 0
A16: Z | B16: PSV celkem | C16: ='001 3392001 Rek'!F8 -> 0
A17: R | B17: M práce celkem | C17: ='001 3392001 Rek'!H8 -> 0
A18: N | B18: M dodávky celkem | C18: ='001 3392001 Rek'!G8 -> 0
A19: ZRN celkem | C19: =SUM(C15:C18) -> 0
A21: HZS | C21: ='001 3392001 Rek'!I8 -> 0
A22: ZRN+HZS | C22: =C19+C21 -> 0
A23: ZRN+ost.náklady+HZS | C23: =C22+G23 -> 0
A24: Vypracoval | D24: Za zhotovitele | F24: Za objednatele
A25: Jméno : | D25: Jméno : | F25: Jméno :
A26: Datum : | D26: Datum : | F26: Datum :
A28: Podpis : | D28: Podpis: | F28: Podpis:
A30: Základ pro DPH | C30: 21 | D30: % | F30: =C23-F32 -> 0
A31: DPH | C31: =C30 -> 21 | D31: % | F31: =ROUND(PRODUCT(F30,C31/100),0) -> 0
A32: Základ pro DPH | C32: 0 | D32: % | F32: 0
A33: DPH | C33: =C32 -> 0 | D33: % | F33: =ROUND(PRODUCT(F32,C33/100),0) -> 0
A34: CENA ZA OBJEKT CELKEM | F34: =ROUND(SUM(F30:F33),0) -> 0
A36: Poznámka :

Sheet 001 3392001 Rek
A1: Stavba : | C1: 3392 Chuchelna - optimalizace vodovodní soustavy | G1: Rozpočet : | H1: 3392/001
A2: Objekt : | C2: 001 Rozdělení tlakových pásem | G2: Rozdělení tlakových pásem
A4: REKAPITULACE STAVEBNÍCH DÍLŮ
B6: Stavební díl | E6: HSV | F6: PSV | G6: Dodávka | H6: Montáž | I6: HZS
A7: ='001 3392001 Pol'!B7 -> 8 | B7: ='001 3392001 Pol'!C7 -> Trubní vedení | E7: ='001 3392001 Pol'!BA13 -> 0 | F7: ='001 3392001 Pol'!BB13 -> 0 | G7: ='001 3392001 Pol'!BC13 -> 0 | H7: ='001 3392001 Pol'!BD13 -> 0 | I7: ='001 3392001 Pol'!BE13 -> 0
B8: CELKEM OBJEKT | E8: =SUM(E7:E7) -> 0 | F8: =SUM(F7:F7) -> 0 | G8: =SUM(G7:G7) -> 0 | H8: =SUM(H7:H7) -> 0 | I8: =SUM(I7:I7) -> 0

Sheet 001 3392001 Pol
A1: Položkový rozpočet
A3: Stavba : | C3: 3392 Chuchelna - optimalizace vodovodní soustavy | E3: Rozpočet: | F3: ='001 3392001 Rek'!H1 -> 3392/001
A4: Objekt : | C4: 001 Rozdělení tlakových pásem | E4: ='001 3392001 Rek'!G2 -> Rozdělení tlakových pásem
A6: P.č. | B6: Číslo položky | C6: Název položky | D6: MJ | E6: množství | F6: cena / MJ | G6: celkem (Kč) | H6: Jednotková hmotnost | I6: Celková hmotnost | J6: Jednotková dem.hmot. | K6: Celková dem.hmot.
A7: Díl: | B7: 8 | C7: Trubní vedení | O7: 1
A8: 1 | B8: 900 R00 | C8: HZS - Uzavření pásmového šoupátka | D8: hodin | E8: 4 | G8: =E8*F8 -> 0 | H8: 0 | I8: =E8*H8 -> 0 | K8: =E8*J8 -> 0 | O8: 2 | AA8: 10 | AB8: 0 | AC8: 8 | AZ8: 5 | BA8: =IF(AZ8=1,G8,0) -> 0 | BB8: =IF(AZ8=2,G8,0) -> 0 | BC8: =IF(AZ8=3,G8,0) -> 0 | BD8: =IF(AZ8=4,G8,0) -> 0 | BE8: =IF(AZ8=5,G8,0) -> 0 | CA8: 10 | CB8: 0
C9: Na základě písemné dohody mezi zhotovitele a objednatelem je možno ocenit stavební práce pomocí HZS jde-li o: | L9: Na základě písemné dohody mezi zhotovitele a objednatelem je možno ocenit stavební práce pomocí HZS jde-li o: | O9: 3
C10: a) stavební práce prováděné bez projektové dokumentace, | L10: a) stavební práce prováděné bez projektové dokumentace, | O10: 3
C11: Pásmové šoupátko u čp. 67:2,00 | E11: 2 | M11: Pásmové šoupátko u čp. 67:2,00
C12: Pásmové šoupátko u čp.41:2,00 | E12: 2 | M12: Pásmové šoupátko u čp.41:2,00
B13: Celkem za | C13: 8 Trubní vedení | G13: =SUM(G7:G12) -> 0 | I13: =SUM(I7:I12) -> 0 | K13: =SUM(K7:K12) -> 0 | O13: 4 | BA13: =SUM(BA7:BA12) -> 0 | BB13: =SUM(BB7:BB12) -> 0 | BC13: =SUM(BC7:BC12) -> 0 | BD13: =SUM(BD7:BD12) -> 0 | BE13: =SUM(BE7:BE12) -> 0

Sheet 002 3392002 KL
A1: POLOŽKOVÝ ROZPOČET
A2: Rozpočet | C2: 3392/002 | D2: Chuchelna - zaslepení vodovodu | F2: JKSO | G2: 827.11
A4: Objekt | F4: SKP
A5: 002 | C5: Chuchelna - zaslepení vodovodu | F5: Měrná jednotka | G5: m
A6: Stavba | F6: Počet jednotek | G6: 0
A7: 3392 | C7: Chuchelna - optimalizace vodovodní soustavy | F7: Náklady na m.j. | G7: =IF(G6=0,,ROUND((F30+F32)/G6,1)) -> 0
A8: Projektant | C8: Radek Hnát - VAK PROJEKT | F8: Typ rozpočtu
A9: Zpracovatel projektu
A10: Objednatel | C10: Vodohospodářské sdružení Turnov
A11: Dodavatel | C11: . | F11: Zakázkové číslo
A12: Rozpočtoval | F12: Počet listů
A13: ROZPOČTOVÉ NÁKLADY
A14: Základní rozpočtové náklady
B15: HSV celkem | C15: ='002 3392002 Rek'!E11 -> 0
A16: Z | B16: PSV celkem | C16: ='002 3392002 Rek'!F11 -> 0
A17: R | B17: M práce celkem | C17: ='002 3392002 Rek'!H11 -> 0
A18: N | B18: M dodávky celkem | C18: ='002 3392002 Rek'!G11 -> 0
A19: ZRN celkem | C19: =SUM(C15:C18) -> 0
A21: HZS | C21: ='002 3392002 Rek'!I11 -> 0
A22: ZRN+HZS | C22: =C19+C21 -> 0
A23: ZRN+ost.náklady+HZS | C23: =C22+G23 -> 0
A24: Vypracoval | D24: Za zhotovitele | F24: Za objednatele
A25: Jméno : | D25: Jméno : | F25: Jméno :
A26: Datum : | D26: Datum : | F26: Datum :
A28: Podpis : | D28: Podpis: | F28: Podpis:
A30: Základ pro DPH | C30: 21 | D30: % | F30: =C23-F32 -> 0
A31: DPH | C31: =C30 -> 21 | D31: % | F31: =ROUND(PRODUCT(F30,C31/100),0) -> 0
A32: Základ pro DPH | C32: 0 | D32: % | F32: 0
A33: DPH | C33: =C32 -> 0 | D33: % | F33: =ROUND(PRODUCT(F32,C33/100),0) -> 0
A34: CENA ZA OBJEKT CELKEM | F34: =ROUND(SUM(F30:F33),0) -> 0
A36: Poznámka :

Sheet 002 3392002 Rek
A1: Stavba : | C1: 3392 Chuchelna - optimalizace vodovodní soustavy | G1: Rozpočet : | H1: 3392/002
A2: Objekt : | C2: 002 Chuchelna - zaslepení vodovodu | G2: Chuchelna - zaslepení vodovodu
A4: REKAPITULACE STAVEBNÍCH DÍLŮ
B6: Stavební díl | E6: HSV | F6: PSV | G6: Dodávka | H6: Montáž | I6: HZS
A7: ='002 3392002 Pol'!B7 -> 1 | B7: ='002 3392002 Pol'!C7 -> Zemní práce | E7: ='002 3392002 Pol'!BA44 -> 0 | F7: ='002 3392002 Pol'!BB44 -> 0 | G7: ='002 3392002 Pol'!BC44 -> 0 | H7: ='002 3392002 Pol'!BD44 -> 0 | I7: ='002 3392002 Pol'!BE44 -> 0
A8: ='002 3392002 Pol'!B45 -> 45 | B8: ='002 3392002 Pol'!C45 -> Podkladní a vedlejší konstrukce | E8: ='002 3392002 Pol'!BA50 -> 0 | F8: ='002 3392002 Pol'!BB50 -> 0 | G8: ='002 3392002 Pol'!BC50 -> 0 | H8: ='002 3392002 Pol'!BD50 -> 0 | I8: ='002 3392002 Pol'!BE50 -> 0
A9: ='002 3392002 Pol'!B51 -> 8 | B9: ='002 3392002 Pol'!C51 -> Trubní vedení | E9: ='002 3392002 Pol'!BA161 -> 0 | F9: ='002 3392002 Pol'!BB161 -> 0 | G9: ='002 3392002 Pol'!BC161 -> 0 | H9: ='002 3392002 Pol'!BD161 -> 0 | I9: ='002 3392002 Pol'!BE161 -> 0
A10: ='002 3392002 Pol'!B162 -> 99 | B10: ='002 3392002 Pol'!C162 -> Staveništní přesun hmot | E10: ='002 3392002 Pol'!BA164 -> 0 | F10: ='002 3392002 Pol'!BB164 -> 0 | G10: ='002 3392002 Pol'!BC164 -> 0 | H10: ='002 3392002 Pol'!BD164 -> 0 | I10: ='002 3392002 Pol'!BE164 -> 0
B11: CELKEM OBJEKT | E11: =SUM(E7:E10) -> 0 | F11: =SUM(F7:F10) -> 0 | G11: =SUM(G7:G10) -> 0 | H11: =SUM(H7:H10) -> 0 | I11: =SUM(I7:I10) -> 0

Sheet 002 3392002 Pol
A1: Položkový rozpočet
A3: Stavba : | C3: 3392 Chuchelna - optimalizace vodovodní soustavy | E3: Rozpočet: | F3: ='002 3392002 Rek'!H1 -> 3392/002
A4: Objekt : | C4: 002 Chuchelna - zaslepení vodovodu | E4: ='002 3392002 Rek'!G2 -> Chuchelna - zaslepení vodovodu
A6: P.č. | B6: Číslo položky | C6: Název položky | D6: MJ | E6: množství | F6: cena / MJ | G6: celkem (Kč) | H6: Jednotková hmotnost | I6: Celková hmotnost | J6: Jednotková dem.hmot. | K6: Celková dem.hmot.
A7: Díl: | B7: 1 | C7: Zemní práce | O7: 1
A8: 1 | B8: 121100002RAA | C8: Sejmutí ornice a uložení na deponii zpětný přesun, rozprostření v tl. 20 cm | D8: m3 | E8: 1.8 | G8: =E8*F8 -> 0 | H8: 0 | I8: =E8*H8 -> 0 | J8: 0 | K8: =E8*J8 -> 0 | O8: 2 | AA8: 1 | AB8: 1 | AC8: 1 | AZ8: 1 | BA8: =IF(AZ8=1,G8,0) -> 0 | BB8: =IF(AZ8=2,G8,0) -> 0 | BC8: =IF(AZ8=3,G8,0) -> 0 | BD8: =IF(AZ8=4,G8,0) -> 0 | BE8: =IF(AZ8=5,G8,0) -> 0 | CA8: 1 | CB8: 1
C9: Zaslepení stávajícího vodovodu:3,00*3,00*0,20 | E9: 1.8 | M9: Zaslepení stávajícího vodovodu:3,00*3,00*0,20
A10: 2 | B10: 130001101RRX | C10: Příplatek za ztížené hloubení v blízkosti vedení | D10: m3 | E10: 3.6 | G10: =E10*F10 -> 0 | H10: 0 | I10: =E10*H10 -> 0 | J10: 0 | K10: =E10*J10 -> 0 | O10: 2 | AA10: 1 | AB10: 1 | AC10: 1 | AZ10: 1 | BA10: =IF(AZ10=1,G10,0) -> 0 | BB10: =IF(AZ10=2,G10,0) -> 0 | BC10: =IF(AZ10=3,G10,0) -> 0 | BD10: =IF(AZ10=4,G10,0) -> 0 | BE10: =IF(AZ10=5,G10,0) -> 0 | CA10: 1 | CB10: 1
C11: Včetně případných nutných dokopávem a ručního výkopu podél sousedících inženýrských sítí včetně vyvěšení a zajištění sítí. | L11: Včetně případných nutných dokopávem a ručního výkopu podél sousedících inženýrských sítí včetně vyvěšení a zajištění sítí. | O11: 3
C12: Zaslepení stávajícího vodovodu :2,00*2,00*(2,00-0,20)*0,5 | E12: 3.6 | M12: Zaslepení stávajícího vodovodu :2,00*2,00*(2,00-0,20)*0,5
A13: 3 | B13: 133201101R00 | C13: Hloubení šachet v hor.3 do 100 m3 | D13: m3 | E13: 7.2 | G13: =E13*F13 -> 0 | H13: 0 | I13: =E13*H13 -> 0 | J13: 0 | K13: =E13*J13 -> 0 | O13: 2 | AA13: 1 | AB13: 0 | AC13: 0 | AZ13: 1 | BA13: =IF(AZ13=1,G13,0) -> 0 | BB13: =IF(AZ13=2,G13,0) -> 0 | BC13: =IF(AZ13=3,G13,0) -> 0 | BD13: =IF(AZ13=4,G13,0) -> 0 | BE13: =IF(AZ13=5,G13,0) -> 0 | CA13: 1 | CB13: 0
C14: V položce je kalkulováno i svislé přemístění výkopku | L14: V položce je kalkulováno i svislé přemístění výkopku | O14: 3
C15: Zaslepení stávajícího vodovodu:2,00*2,00*(2,00-0,20) | E15: 7.2 | M15: Zaslepení stávajícího vodovodu:2,00*2,00*(2,00-0,20)
A16: 4 | B16: 133201109R00 | C16: Příplatek za lepivost - hloubení šachet v hor.3 | D16: m3 | E16: 3.6 | G16: =E16*F16 -> 0 | H16: 0 | I16: =E16*H16 -> 0 | J16: 0 | K16: =E16*J16 -> 0 | O16: 2 | AA16: 1 | AB16: 1 | AC16: 1 | AZ16: 1 | BA16: =IF(AZ16=1,G16,0) -> 0 | BB16: =IF(AZ16=2,G16,0) -> 0 | BC16: =IF(AZ16=3,G16,0) -> 0 | BD16: =IF(AZ16=4,G16,0) -> 0 | BE16: =IF(AZ16=5,G16,0) -> 0 | CA16: 1 | CB16: 1
C17: Zaslepení stávajícího vodovodu:2,00*2,00*(2,00-0,20)*0,5 | E17: 3.6 | M17: Zaslepení stávajícího vodovodu:2,00*2,00*(2,00-0,20)*0,5
A18: 5 | B18: 151101201R00 | C18: Pažení stěn výkopu - příložné - hloubky do 4 m | D18: m2 | E18: 8 | G18: =E18*F18 -> 0 | H18: 0.0007 | I18: =E18*H18 -> 0.0056 | J18: 0 | K18: =E18*J18 -> 0 | O18: 2 | AA18: 1 | AB18: 1 | AC18: 1 | AZ18: 1 | BA18: =IF(AZ18=1,G18,0) -> 0 | BB18: =IF(AZ18=2,G18,0) -> 0 | BC18: =IF(AZ18=3,G18,0) -> 0 | BD18: =IF(AZ18=4,G18,0) -> 0 | BE18: =IF(AZ18=5,G18,0) -> 0 | CA18: 1 | CB18: 1
C19: Zaslepení stávajícího vodovodu:2,00*2,00*2 | E19: 8 | M19: Zaslepení stávajícího vodovodu:2,00*2,00*2
A20: 6 | B20: 151101211R00 | C20: Odstranění pažení stěn - příložné - hl. do 4 m | D20: m2 | E20: 8 | G20: =E20*F20 -> 0 | H20: 0 | I20: =E20*H20 -> 0 | J20: 0 | K20: =E20*J20 -> 0 | O20: 2 | AA20: 1 | AB20: 1 | AC20: 1 | AZ20: 1 | BA20: =IF(AZ20=1,G20,0) -> 0 | BB20: =IF(AZ20=2,G20,0) -> 0 | BC20: =IF(AZ20=3,G20,0) -> 0 | BD20: =IF(AZ20=4,G20,0) -> 0 | BE20: =IF(AZ20=5,G20,0) -> 0 | CA20: 1 | CB20: 1
C21: Zaslepení stávajícího vodovodu:2,00*2,00*2 | E21: 8 | M21: Zaslepení stávajícího vodovodu:2,00*2,00*2
A22: 7 | B22: 151101301R00 | C22: Rozepření stěn pažení - příložné - hl. do 4 m | D22: m3 | E22: 8 | G22: =E22*F22 -> 0 | H22: 0.00046 | I22: =E22*H22 -> 0.00368 | J22: 0 | K22: =E22*J22 -> 0 | O22: 2 | AA22: 1 | AB22: 1 | AC22: 1 | AZ22: 1 | BA22: =IF(AZ22=1,G22,0) -> 0 | BB22: =IF(AZ22=2,G22,0) -> 0 | BC22: =IF(AZ22=3,G22,0) -> 0 | BD22: =IF(AZ22=4,G22,0) -> 0 | BE22: =IF(AZ22=5,G22,0) -> 0 | CA22: 1 | CB22: 1
C23: Zaslepení stávajícího vodovodu:2,00*2,00*2,00 | E23: 8 | M23: Zaslepení stávajícího vodovodu:2,00*2,00*2,00
A24: 8 | B24: 151101311R00 | C24: Odstranění rozepření stěn - příložné - hl. do 4 m | D24: m3 | E24: 8 | G24: =E24*F24 -> 0 | H24: 0 | I24: =E24*H24 -> 0 | J24: 0 | K24: =E24*J24 -> 0 | O24: 2 | AA24: 1 | AB24: 1 | AC24: 1 | AZ24: 1 | BA24: =IF(AZ24=1,G24,0) -> 0 | BB24: =IF(AZ24=2,G24,0) -> 0 | BC24: =IF(AZ24=3,G24,0) -> 0 | BD24: =IF(AZ24=4,G24,0) -> 0 | BE24: =IF(AZ24=5,G24,0) -> 0 | CA24: 1 | CB24: 1
C25: Zaslepení stávajícího vodovodu:2,00*2,00*2,00 | E25: 8 | M25: Zaslepení stávajícího vodovodu:2,00*2,00*2,00
A26: 9 | B26: 162701105RSZ | C26: Vodorovné přemístění výkopku z hor.1-7 na skládku zhotovitele | D26: m3 | E26: 0.96 | G26: =E26*F26 -> 0 | H26: 0 | I26: =E26*H26 -> 0 | J26: 0 | K26: =E26*J26 -> 0 | O26: 2 | AA26: 1 | AB26: 1 | AC26: 1 | AZ26: 1 | BA26: =IF(AZ26=1,G26,0) -> 0 | BB26: =IF(AZ26=2,G26,0) -> 0 | BC26: =IF(AZ26=3,G26,0) -> 0 | BD26: =IF(AZ26=4,G26,0) -> 0 | BE26: =IF(AZ26=5,G26,0) -> 0 | CA26: 1 | CB26: 1
C27: Výkopy: | E27: 0 | M27: Výkopy:
C28: Zaslepení stávajícího vodovodu:2,00*2,00*(2,00-0,20) | E28: 7.2 | M28: Zaslepení stávajícího vodovodu:2,00*2,00*(2,00-0,20)
C29: Odpočet zásypů zeminou:-6,2400 | E29: -6.24 | M29: Odpočet zásypů zeminou:-6,2400
A30: 10 | B30: 174101101R00 | C30: Zásyp jam, rýh, šachet se zhutněním | D30: m3 | E30: 6.24 | G30: =E30*F30 -> 0 | H30: 0 | I30: =E30*H30 -> 0 | J30: 0 | K30: =E30*J30 -> 0 | O30: 2 | AA30: 1 | AB30: 1 | AC30: 1 | AZ30: 1 | BA30: =IF(AZ30=1,G30,0) -> 0 | BB30: =IF(AZ30=2,G30,0) -> 0 | BC30: =IF(AZ30=3,G30,0) -> 0 | BD30: =IF(AZ30=4,G30,0) -> 0 | BE30: =IF(AZ30=5,G30,0) -> 0 | CA30: 1 | CB30: 1
C31: Položka obsahuje strojní přemístění materiálu pro zásyp ze vzdálenosti do 10 m od okraje zásypu. | L31: Položka obsahuje strojní přemístění materiálu pro zásyp ze vzdálenosti do 10 m od okraje zásypu. | O31: 3
O32: 3
C33: Výkopy: | E33: 0 | M33: Výkopy:
C34: Zaslepení stávajícího vodovodu:2,00*2,00*(2,00-0,20) | E34: 7.2 | M34: Zaslepení stávajícího vodovodu:2,00*2,00*(2,00-0,20)
C35: Odpočet objemu lože, potrubí a obsypů:-2,00*0,80*(0,20+0,10+0,30) | E35: -0.96 | M35: Odpočet objemu lože, potrubí a obsypů:-2,00*0,80*(0,20+0,10+0,30)
A36: 11 | B36: 175101101R00 | C36: Obsyp potrubí bez prohození sypaniny | D36: m3 | E36: 0.64 | G36: =E36*F36 -> 0 | H36: 0 | I36: =E36*H36 -> 0 | J36: 0 | K36: =E36*J36 -> 0 | O36: 2 | AA36: 1 | AB36: 1 | AC36: 1 | AZ36: 1 | BA36: =IF(AZ36=1,G36,0) -> 0 | BB36: =IF(AZ36=2,G36,0) -> 0 | BC36: =IF(AZ36=3,G36,0) -> 0 | BD36: =IF(AZ36=4,G36,0) -> 0 | BE36: =IF(AZ36=5,G36,0) -> 0 | CA36: 1 | CB36: 1
C37: Zaslepení stávajícího vodovodu:2,00*0,80*(0,10+0,30) | E37: 0.64 | M37: Zaslepení stávajícího vodovodu:2,00*0,80*(0,10+0,30)
A38: 12 | B38: 199000002R00 | C38: Poplatek za skládku horniny 1- 7 č. dle katal. odpadů 17 05 04 | D38: m3 | E38: 0.96 | G38: =E38*F38 -> 0 | H38: 0 | I38: =E38*H38 -> 0 | J38: 0 | K38: =E38*J38 -> 0 | O38: 2 | AA38: 1 | AB38: 1 | AC38: 1 | AZ38: 1 | BA38: =IF(AZ38=1,G38,0) -> 0 | BB38: =IF(AZ38=2,G38,0) -> 0 | BC38: =IF(AZ38=3,G38,0) -> 0 | BD38: =IF(AZ38=4,G38,0) -> 0 | BE38: =IF(AZ38=5,G38,0) -> 0 | CA38: 1 | CB38: 1
C39: Výkopy: | E39: 0 | M39: Výkopy:
C40: Zaslepení stávajícího vodovodu:2,00*2,00*(2,00-0,20) | E40: 7.2 | M40: Zaslepení stávajícího vodovodu:2,00*2,00*(2,00-0,20)
C41: Odpočet zásypů zeminou:-6,2400 | E41: -6.24 | M41: Odpočet zásypů zeminou:-6,2400
A42: 13 | B42: 58337309.R | C42: Štěrkopísek frakce 0-4 tř.B | D42: t | E42: 1.2753 | G42: =E42*F42 -> 0 | H42: 1 | I42: =E42*H42 -> 1.2753 | K42: =E42*J42 -> 0 | O42: 2 | AA42: 3 | AB42: 1 | AC42: 58337309.R | AZ42: 1 | BA42: =IF(AZ42=1,G42,0) -> 0 | BB42: =IF(AZ42=2,G42,0) -> 0 | BC42: =IF(AZ42=3,G42,0) -> 0 | BD42: =IF(AZ42=4,G42,0) -> 0 | BE42: =IF(AZ42=5,G42,0) -> 0 | CA42: 3 | CB42: 1
C43: Zaslepení stávajícího vodovodu:2,00*0,80*(0,10+0,30)*1,973*1,01 | E43: 1.2753 | M43: Zaslepení stávajícího vodovodu:2,00*0,80*(0,10+0,30)*1,973*1,01
B44: Celkem za | C44: 1 Zemní práce | G44: =SUM(G7:G43) -> 0 | I44: =SUM(I7:I43) -> 1.28458 | K44: =SUM(K7:K43) -> 0 | O44: 4 | BA44: =SUM(BA7:BA43) -> 0 | BB44: =SUM(BB7:BB43) -> 0 | BC44: =SUM(BC7:BC43) -> 0 | BD44: =SUM(BD7:BD43) -> 0 | BE44: =SUM(BE7:BE43) -> 0
A45: Díl: | B45: 45 | C45: Podkladní a vedlejší konstrukce | O45: 1
A46: 14 | B46: 451572111R00 | C46: Lože pod potrubí z kameniva těženého 0 - 4 mm | D46: m3 | E46: 0.32 | G46: =E46*F46 -> 0 | H46: 0.43051 | I46: =E46*H46 -> 0.1377632 | J46: 0 | K46: =E46*J46 -> 0 | O46: 2 | AA46: 1 | AB46: 1 | AC46: 1 | AZ46: 1 | BA46: =IF(AZ46=1,G46,0) -> 0 | BB46: =IF(AZ46=2,G46,0) -> 0 | BC46: =IF(AZ46=3,G46,0) -> 0 | BD46: =IF(AZ46=4,G46,0) -> 0 | BE46: =IF(AZ46=5,G46,0) -> 0 | CA46: 1 | CB46: 1
C47: Zaslepení stávajícího vodovodu:2,00*0,80*0,20 | E47: 0.32 | M47: Zaslepení stávajícího vodovodu:2,00*0,80*0,20
A48: 15 | B48: 452313141R00 | C48: Bloky pro potrubí z betonu C 16/20 vč. bednění | D48: m3 | E48: 0.025 | G48: =E48*F48 -> 0 | H48: 2.5 | I48: =E48*H48 -> 0.0625 | J48: 0 | K48: =E48*J48 -> 0 | O48: 2 | AA48: 1 | AB48: 1 | AC48: 1 | AZ48: 1 | BA48: =IF(AZ48=1,G48,0) -> 0 | BB48: =IF(AZ48=2,G48,0) -> 0 | BC48: =IF(AZ48=3,G48,0) -> 0 | BD48: =IF(AZ48=4,G48,0) -> 0 | BE48: =IF(AZ48=5,G48,0) -> 0 | CA48: 1 | CB48: 1
C49: Zaslepení stávajícího vodovodu - Blok pro PPL DN80:0,025 | E49: 0.025 | M49: Zaslepení stávajícího vodovodu - Blok pro PPL DN80:0,025
B50: Celkem za | C50: 45 Podkladní a vedlejší konstrukce | G50: =SUM(G45:G49) -> 0 | I50: =SUM(I45:I49) -> 0.2002632 | K50: =SUM(K45:K49) -> 0 | O50: 4 | BA50: =SUM(BA45:BA49) -> 0 | BB50: =SUM(BB45:BB49) -> 0 | BC50: =SUM(BC45:BC49) -> 0 | BD50: =SUM(BD45:BD49) -> 0 | BE50: =SUM(BE45:BE49) -> 0
A51: Díl: | B51: 8 | C51: Trubní vedení | O51: 1
A52: 16 | B52: 850265121R00 | C52: Výřez nebo výsek na potrubí litinovém DN 100 | D52: kus | E52: 1 | G52: =E52*F52 -> 0 | H52: 0 | I52: =E52*H52 -> 0 | J52: 0 | K52: =E52*J52 -> 0 | O52: 2 | AA52: 1 | AB52: 1 | AC52: 1 | AZ52: 1 | BA52: =IF(AZ52=1,G52,0) -> 0 | BB52: =IF(AZ52=2,G52,0) -> 0 | BC52: =IF(AZ52=3,G52,0) -> 0 | BD52: =IF(AZ52=4,G52,0) -> 0 | BE52: =IF(AZ52=5,G52,0) -> 0 | CA52: 1 | CB52: 1
C53: Položky výřezu nebo výseku na potrubí z trub litinových tlakových jsou určeny pro dva řezy nebo seky prováděné na potrubí dodatečně. V položkách jsou zakalkulovány náklady na | L53: Položky výřezu nebo výseku na potrubí z trub litinových tlakových jsou určeny pro dva řezy nebo seky prováděné na potrubí dodatečně. V položkách jsou zakalkulovány náklady na | O53: 3
C54: - ohlášení uzavírání vody | L54: - ohlášení uzavírání vody | O54: 3
C55: - uzavření a otevření šoupat | L55: - uzavření a otevření šoupat | O55: 3
C56: - vypuštění a napuštění vody | L56: - vypuštění a napuštění vody | O56: 3
C57: - odvzdušnění potrubí | L57: - odvzdušnění potrubí | O57: 3
C58: - strojní nebo ruční výřez potrubí | L58: - strojní nebo ruční výřez potrubí | O58: 3
C59: - nutné úpravy výkopu v prostoru provádění | L59: - nutné úpravy výkopu v prostoru provádění | O59: 3
C60: - montáž tvarovky | L60: - montáž tvarovky | O60: 3
C61: Zaslepení stávajícího vodovodu TLT DN100:1 | E61: 1 | M61: Zaslepení stávajícího vodovodu TLT DN100:1
A62: 17 | B62: 857242121R00 | C62: Montáž tvarovek litin. jednoos.přír. výkop DN 80 včetně nerezových spoj. prvků a obandážování spoje | D62: kus | E62: 1 | G62: =E62*F62 -> 0 | H62: 0.00022 | I62: =E62*H62 -> 0.00022 | J62: 0 | K62: =E62*J62 -> 0 | O62: 2 | AA62: 1 | AB62: 1 | AC62: 1 | AZ62: 1 | BA62: =IF(AZ62=1,G62,0) -> 0 | BB62: =IF(AZ62=2,G62,0) -> 0 | BC62: =IF(AZ62=3,G62,0) -> 0 | BD62: =IF(AZ62=4,G62,0) -> 0 | BE62: =IF(AZ62=5,G62,0) -> 0 | CA62: 1 | CB62: 1
C63: Položka je určena pro montáž litinových tvarovek na potrubí litinovém tlakovém přírubovém jednoosých v otevřeném výkopu, v otevřeném kanálu nebo v šachtě. | L63: Položka je určena pro montáž litinových tvarovek na potrubí litinovém tlakovém přírubovém jednoosých v otevřeném výkopu, v otevřeném kanálu nebo v šachtě. | O63: 3
C64: Součástí položky je i dodávka nerezových spojovacích prvků (šrouby, podložky, matky) a kompletního obandážování spojů. | L64: Součástí položky je i dodávka nerezových spojovacích prvků (šrouby, podložky, matky) a kompletního obandážování spojů. | O64: 3
C65: Zaslepení stávajícího vodovodu TLT DN100: | E65: 0 | M65: Zaslepení stávajícího vodovodu TLT DN100:
C66: PPL DN80:1 | E66: 1 | M66: PPL DN80:1
A67: 18 | B67: 857262121R00 | C67: Montáž tvarovek litin. jednoos. přír. výkop DN 100 včetně nerezových spoj. prvků a obandážování spoje | D67: kus | E67: 1 | G67: =E67*F67 -> 0 | H67: 0.00041 | I67: =E67*H67 -> 0.00041 | J67: 0 | K67: =E67*J67 -> 0 | O67: 2 | AA67: 1 | AB67: 1 | AC67: 1 | AZ67: 1 | BA67: =IF(AZ67=1,G67,0) -> 0 | BB67: =IF(AZ67=2,G67,0) -> 0 | BC67: =IF(AZ67=3,G67,0) -> 0 | BD67: =IF(AZ67=4,G67,0) -> 0 | BE67: =IF(AZ67=5,G67,0) -> 0 | CA67: 1 | CB67: 1
C68: Položka je určena pro montáž litinových tvarovek na potrubí litinovém tlakovém přírubovém jednoosých v otevřeném výkopu, v otevřeném kanálu nebo v šachtě. | L68: Položka je určena pro montáž litinových tvarovek na potrubí litinovém tlakovém přírubovém jednoosých v otevřeném výkopu, v otevřeném kanálu nebo v šachtě. | O68: 3
C69: Součástí položky je i dodávka nerezových spojovacích prvků (šrouby, podložky, matky) a kompletního obandážování spojů. | L69: Součástí položky je i dodávka nerezových spojovacích prvků (šrouby, podložky, matky) a kompletního obandážování spojů. | O69: 3
C70: Zaslepení stávajícího vodovodu TLT DN100: | E70: 0 | M70: Zaslepení stávajícího vodovodu TLT DN100:
C71: Synoflex s přírubou redukovaný DN100/80 (100/85-105):1 | E71: 1 | M71: Synoflex s přírubou redukovaný DN100/80 (100/85-105):1
A72: 19 | B72: 891241111R00 | C72: Montáž vodovodních šoupátek ve výkopu DN 80 včetně nerezových spoj. prvků a obandážování spoje | D72: kus | E72: 1 | G72: =E72*F72 -> 0 | H72: 0.00022 | I72: =E72*H72 -> 0.00022 | J72: 0 | K72: =E72*J72 -> 0 | O72: 2 | AA72: 1 | AB72: 1 | AC72: 1 | AZ72: 1 | BA72: =IF(AZ72=1,G72,0) -> 0 | BB72: =IF(AZ72=2,G72,0) -> 0 | BC72: =IF(AZ72=3,G72,0) -> 0 | BD72: =IF(AZ72=4,G72,0) -> 0 | BE72: =IF(AZ72=5,G72,0) -> 0 | CA72: 1 | CB72: 1
C73: Položka je určena pro montáž vodovodních šoupátek v otevřeném výkopu nebo v šachtách s osazením zemní soupravy (bez poklopů). V položce jsou zakalkulovány i náklady na vytvoření otvorů ve stropech šachet pro prostup zemních souprav šoupátek. | L73: Položka je určena pro montáž vodovodních šoupátek v otevřeném výkopu nebo v šachtách s osazením zemní soupravy (bez poklopů). V položce jsou zakalkulovány i náklady na vytvoření otvorů ve stropech šachet pro prostup zemních souprav šoupátek. | O73: 3
C74: Součástí položky je i dodávka nerezových spojovacích prvků (šrouby, podložky, matky) a kompletního obandážování spojů. | L74: Součástí položky je i dodávka nerezových spojovacích prvků (šrouby, podložky, matky) a kompletního obandážování spojů. | O74: 3
C75: Zaslepení stávajícího vodovodu TLT DN100: | E75: 0 | M75: Zaslepení stávajícího vodovodu TLT DN100:
C76: Šoupě DN80:1 | E76: 1 | M76: Šoupě DN80:1
A77: 20 | B77: 891247111R00 | C77: Montáž hydrantů podzemních DN 80 včetně nerezových spoj. prvků a obandážování spoje | D77: kus | E77: 1 | G77: =E77*F77 -> 0 | H77: 0.00011 | I77: =E77*H77 -> 0.00011 | J77: 0 | K77: =E77*J77 -> 0 | O77: 2 | AA77: 1 | AB77: 1 | AC77: 1 | AZ77: 1 | BA77: =IF(AZ77=1,G77,0) -> 0 | BB77: =IF(AZ77=2,G77,0) -> 0 | BC77: =IF(AZ77=3,G77,0) -> 0 | BD77: =IF(AZ77=4,G77,0) -> 0 | BE77: =IF(AZ77=5,G77,0) -> 0 | CA77: 1 | CB77: 1
C78: Položka je určena pro montáž hydrantů podzemních (bez osazení poklopů) na potrubí včetně drenážního obalu. | L78: Položka je určena pro montáž hydrantů podzemních (bez osazení poklopů) na potrubí včetně drenážního obalu. | O78: 3
C79: Součástí položky je i dodávka nerezových spojovacích prvků (šrouby, podložky, matky) a kompletního obandážování spojů. | L79: Součástí položky je i dodávka nerezových spojovacích prvků (šrouby, podložky, matky) a kompletního obandážování spojů. | O79: 3
C80: Zaslepení stávajícího vodovodu TLT DN100: | E80: 0 | M80: Zaslepení stávajícího vodovodu TLT DN100:
C81: Hp DN80/1,5:1 | E81: 1 | M81: Hp DN80/1,5:1
A82: 21 | B82: 894421111RT1 | C82: Osazení betonových dílců šachet skruže rovné, na kroužek, do 0,5 t | D82: kus | E82: 1 | G82: =E82*F82 -> 0 | H82: 0 | I82: =E82*H82 -> 0 | J82: 0 | K82: =E82*J82 -> 0 | O82: 2 | AA82: 1 | AB82: 1 | AC82: 1 | AZ82: 1 | BA82: =IF(AZ82=1,G82,0) -> 0 | BB82: =IF(AZ82=2,G82,0) -> 0 | BC82: =IF(AZ82=3,G82,0) -> 0 | BD82: =IF(AZ82=4,G82,0) -> 0 | BE82: =IF(AZ82=5,G82,0) -> 0 | CA82: 1 | CB82: 1
C83: Položka je určena pro osazení betonových dílců šachet dle DIN 4034, skruže rovné na kroužek, hmotnost do 0,5 t. | L83: Položka je určena pro osazení betonových dílců šachet dle DIN 4034, skruže rovné na kroužek, hmotnost do 0,5 t. | O83: 3
C84: V položce nejsou zakalkulovány náklady na dodání betonových dílců; dílce se oceňují ve specifikaci. | L84: V položce nejsou zakalkulovány náklady na dodání betonových dílců; dílce se oceňují ve specifikaci. | O84: 3
C85: Zaslepení stávajícího vodovodu TLT DN100: | E85: 0 | M85: Zaslepení stávajícího vodovodu TLT DN100:
C86: Skruž H250 (ochrana Hp):1 | E86: 1 | M86: Skruž H250 (ochrana Hp):1
A87: 22 | B87: 899401112R00 | C87: Osazení poklopů litinových šoupátkových | D87: kus | E87: 1 | G87: =E87*F87 -> 0 | H87: 0.11178 | I87: =E87*H87 -> 0.11178 | J87: 0 | K87: =E87*J87 -> 0 | O87: 2 | AA87: 1 | AB87: 0 | AC87: 0 | AZ87: 1 | BA87: =IF(AZ87=1,G87,0) -> 0 | BB87: =IF(AZ87=2,G87,0) -> 0 | BC87: =IF(AZ87=3,G87,0) -> 0 | BD87: =IF(AZ87=4,G87,0) -> 0 | BE87: =IF(AZ87=5,G87,0) -> 0 | CA87: 1 | CB87: 0
C88: V položkách osazení poklopů jsou zakalkulovány i náklady na jejich podezdění. | L88: V položkách osazení poklopů jsou zakalkulovány i náklady na jejich podezdění. | O88: 3
C89: Zaslepení stávajícího vodovodu TLT DN100: | E89: 0 | M89: Zaslepení stávajícího vodovodu TLT DN100:
C90: Pro Šoupě DN80:1 | E90: 1 | M90: Pro Šoupě DN80:1
A91: 23 | B91: 899401113R00 | C91: Osazení poklopů litinových hydrantových | D91: kus | E91: 1 | G91: =E91*F91 -> 0 | H91: 0.29823 | I91: =E91*H91 -> 0.29823 | J91: 0 | K91: =E91*J91 -> 0 | O91: 2 | AA91: 1 | AB91: 1 | AC91: 1 | AZ91: 1 | BA91: =IF(AZ91=1,G91,0) -> 0 | BB91: =IF(AZ91=2,G91,0) -> 0 | BC91: =IF(AZ91=3,G91,0) -> 0 | BD91: =IF(AZ91=4,G91,0) -> 0 | BE91: =IF(AZ91=5,G91,0) -> 0 | CA91: 1 | CB91: 1
C92: V položkách osazení poklopů jsou zakalkulovány i náklady na jejich podezdění. | L92: V položkách osazení poklopů jsou zakalkulovány i náklady na jejich podezdění. | O92: 3
C93: Zaslepení stávajícího vodovodu TLT DN100: | E93: 0 | M93: Zaslepení stávajícího vodovodu TLT DN100:
C94: Pro Hp DN80/1,5:1 | E94: 1 | M94: Pro Hp DN80/1,5:1
A95: 24 | B95: 899713111RRX | C95: Orientační tabulky na sloupku ocelovém, betonovém | D95: kus | E95: 1 | G95: =E95*F95 -> 0 | H95: 0.00024 | I95: =E95*H95 -> 0.00024 | J95: 0 | K95: =E95*J95 -> 0 | O95: 2 | AA95: 1 | AB95: 1 | AC95: 1 | AZ95: 1 | BA95: =IF(AZ95=1,G95,0) -> 0 | BB95: =IF(AZ95=2,G95,0) -> 0 | BC95: =IF(AZ95=3,G95,0) -> 0 | BD95: =IF(AZ95=4,G95,0) -> 0 | BE95: =IF(AZ95=5,G95,0) -> 0 | CA95: 1 | CB95: 1
C96: Položka platí pro orientační tabulky na vodovodních a kanalizačních řadech. V položce jsou zakalkulovány náklady na dodání a připevnění tabulky a na osazení sloupku. V položce jsou zakalkulovány náklady na zemní práce a na dodání sloupků (betonových nebo ocelových s betonovými patkami) | L96: Položka platí pro orientační tabulky na vodovodních a kanalizačních řadech. V položce jsou zakalkulovány náklady na dodání a připevnění tabulky a na osazení sloupku. V položce jsou zakalkulovány náklady na zemní práce a na dodání sloupků (betonových nebo ocelových s betonovými patkami) | O96: 3
C97: Zaslepení stávajícího vodovodu TLT DN100: | E97: 0 | M97: Zaslepení stávajícího vodovodu TLT DN100:
C98: Pro Šoupě DN80 a HP DN80/1,5:1 | E98: 1 | M98: Pro Šoupě DN80 a HP DN80/1,5:1
A99: 25 | B99: 899721112R00 | C99: Fólie výstražná z PVC bílá, šířka 30 cm | D99: m | E99: 2 | G99: =E99*F99 -> 0 | H99: 0 | I99: =E99*H99 -> 0 | J99: 0 | K99: =E99*J99 -> 0 | O99: 2 | AA99: 1 | AB99: 1 | AC99: 1 | AZ99: 1 | BA99: =IF(AZ99=1,G99,0) -> 0 | BB99: =IF(AZ99=2,G99,0) -> 0 | BC99: =IF(AZ99=3,G99,0) -> 0 | BD99: =IF(AZ99=4,G99,0) -> 0 | BE99: =IF(AZ99=5,G99,0) -> 0 | CA99: 1 | CB99: 1
C100: Zaslepení stávajícího vodovodu TLT DN100: | E100: 0 | M100: Zaslepení stávajícího vodovodu TLT DN100:
C101: Pro Šoupě DN80 a HP DN80/1,5:2,00 | E101: 2 | M101: Pro Šoupě DN80 a HP DN80/1,5:2,00
A102: 26 | B102: 899731114R00 | C102: Vodič signalizační CYY 6 mm2 | D102: m | E102: 3 | G102: =E102*F102 -> 0 | H102: 8e-05 | I102: =E102*H102 -> 0.00024 | J102: 0 | K102: =E102*J102 -> 0 | O102: 2 | AA102: 1 | AB102: 1 | AC102: 1 | AZ102: 1 | BA102: =IF(AZ102=1,G102,0) -> 0 | BB102: =IF(AZ102=2,G102,0) -> 0 | BC102: =IF(AZ102=3,G102,0) -> 0 | BD102: =IF(AZ102=4,G102,0) -> 0 | BE102: =IF(AZ102=5,G102,0) -> 0 | CA102: 1 | CB102: 1
C103: Součástí položky je zajištění proměření vodiče a výchozí zevize. | L103: Součástí položky je zajištění proměření vodiče a výchozí zevize. | O103: 3
C104: Zaslepení stávajícího vodovodu TLT DN100: | E104: 0 | M104: Zaslepení stávajícího vodovodu TLT DN100:
C105: Pro Šoupě DN80 a HP DN80/1,5:3,00 | E105: 3 | M105: Pro Šoupě DN80 a HP DN80/1,5:3,00
A106: 27 | B106: 42201750.R | C106: Poklop uliční šoupátkový 1750 - voda | D106: kus | E106: 1 | G106: =E106*F106 -> 0 | H106: 0.0113 | I106: =E106*H106 -> 0.0113 | K106: =E106*J106 -> 0 | O106: 2 | AA106: 3 | AB106: 1 | AC106: 42201750.R | AZ106: 1 | BA106: =IF(AZ106=1,G106,0) -> 0 | BB106: =IF(AZ106=2,G106,0) -> 0 | BC106: =IF(AZ106=3,G106,0) -> 0 | BD106: =IF(AZ106=4,G106,0) -> 0 | BE106: =IF(AZ106=5,G106,0) -> 0 | CA106: 3 | CB106: 1
C107: Zaslepení stávajícího vodovodu TLT DN100: | E107: 0 | M107: Zaslepení stávajícího vodovodu TLT DN100:
C108: Pro Šoupě DN80:1 | E108: 1 | M108: Pro Šoupě DN80:1
A109: 28 | B109: 42201950.R | C109: Poklop podz. hydrantů č.1950 | D109: kus | E109: 1 | G109: =E109*F109 -> 0 | H109: 0.0113 | I109: =E109*H109 -> 0.0113 | K109: =E109*J109 -> 0 | O109: 2 | AA109: 3 | AB109: 1 | AC109: 42201950.R | AZ109: 1 | BA109: =IF(AZ109=1,G109,0) -> 0 | BB109: =IF(AZ109=2,G109,0) -> 0 | BC109: =IF(AZ109=3,G109,0) -> 0 | BD109: =IF(AZ109=4,G109,0) -> 0 | BE109: =IF(AZ109=5,G109,0) -> 0 | CA109: 3 | CB109: 1
C110: Zaslepení stávajícího vodovodu TLT DN100: | E110: 0 | M110: Zaslepení stávajícího vodovodu TLT DN100:
C111: Pro Hp DN80/1,5:1 | E111: 1 | M111: Pro Hp DN80/1,5:1
A112: 29 | B112: 42203481.R | C112: Podkladová deska č. 3481 | D112: kus | E112: 1 | G112: =E112*F112 -> 0 | H112: 0.0006 | I112: =E112*H112 -> 0.0006 | K112: =E112*J112 -> 0 | O112: 2 | AA112: 3 | AB112: 1 | AC112: 42203481.R | AZ112: 1 | BA112: =IF(AZ112=1,G112,0) -> 0 | BB112: =IF(AZ112=2,G112,0) -> 0 | BC112: =IF(AZ112=3,G112,0) -> 0 | BD112: =IF(AZ112=4,G112,0) -> 0 | BE112: =IF(AZ112=5,G112,0) -> 0 | CA112: 3 | CB112: 1
O113: 3
C114: Zaslepení stávajícího vodovodu TLT DN100: | E114: 0 | M114: Zaslepení stávajícího vodovodu TLT DN100:
C115: Pro Šoupě DN80:1 | E115: 1 | M115: Pro Šoupě DN80:1
A116: 30 | B116: 42203482.R | C116: Podkladová deska č. 3482 | D116: kus | E116: 1 | G116: =E116*F116 -> 0 | H116: 0.0006 | I116: =E116*H116 -> 0.0006 | K116: =E116*J116 -> 0 | O116: 2 | AA116: 3 | AB116: 1 | AC116: 42203482.R | AZ116: 1 | BA116: =IF(AZ116=1,G116,0) -> 0 | BB116: =IF(AZ116=2,G116,0) -> 0 | BC116: =IF(AZ116=3,G116,0) -> 0 | BD116: =IF(AZ116=4,G116,0) -> 0 | BE116: =IF(AZ116=5,G116,0) -> 0 | CA116: 3 | CB116: 1
O117: 3
C118: Zaslepení stávajícího vodovodu TLT DN100: | E118: 0 | M118: Zaslepení stávajícího vodovodu TLT DN100:
C119: Pro Hp DN80/1,5:1 | E119: 1 | M119: Pro Hp DN80/1,5:1
A120: 31 | B120: 42209999.R | C120: Drenážní obal k hydrantům | D120: kus | E120: 1 | G120: =E120*F120 -> 0 | H120: 0.0048 | I120: =E120*H120 -> 0.0048 | K120: =E120*J120 -> 0 | O120: 2 | AA120: 3 | AB120: 1 | AC120: 42209999.R | AZ120: 1 | BA120: =IF(AZ120=1,G120,0) -> 0 | BB120: =IF(AZ120=2,G120,0) -> 0 | BC120: =IF(AZ120=3,G120,0) -> 0 | BD120: =IF(AZ120=4,G120,0) -> 0 | BE120: =IF(AZ120=5,G120,0) -> 0 | CA120: 3 | CB120: 1
C121: Zaslepení stávajícího vodovodu TLT DN100: | E121: 0 | M121: Zaslepení stávajícího vodovodu TLT DN100:
C122: Pro Hp DN80/1,5:1 | E122: 1 | M122: Pro Hp DN80/1,5:1
A123: 32 | B123: 42228310.R3 | C123: Šoupátko 4000E3 DN 80 přírubové, voda PN16 krátké L=180 mm | D123: kus | E123: 1 | G123: =E123*F123 -> 0 | H123: 0.0165 | I123: =E123*H123 -> 0.0165 | K123: =E123*J123 -> 0 | O123: 2 | AA123: 3 | AB123: 1 | AC123: 42228310.R3 | AZ123: 1 | BA123: =IF(AZ123=1,G123,0) -> 0 | BB123: =IF(AZ123=2,G123,0) -> 0 | BC123: =IF(AZ123=3,G123,0) -> 0 | BD123: =IF(AZ123=4,G123,0) -> 0 | BE123: =IF(AZ123=5,G123,0) -> 0 | CA123: 3 | CB123: 1
C124: Šoupátko přírubové krkové - měkcetěsnící klínové šoupátko s hladkým a volným průtokovým kanálem | L124: Šoupátko přírubové krkové - měkcetěsnící klínové šoupátko s hladkým a volným průtokovým kanálem | O124: 3
C125: č. 4000E3 krátké L=180 mm | L125: č. 4000E3 krátké L=180 mm | O125: 3
C126: PN 16 | L126: PN 16 | O126: 3
C127: DN 80 | L127: DN 80 | O127: 3
C128: těleso a víko: tvárná litina GGG 400 - DIN 1693 | L128: těleso a víko: tvárná litina GGG 400 - DIN 1693 | O128: 3
C129: medium: pitná voda, neagresivní odpadní voda | L129: medium: pitná voda, neagresivní odpadní voda | O129: 3
C130: Zaslepení stávajícího vodovodu TLT DN100: | E130: 0 | M130: Zaslepení stávajícího vodovodu TLT DN100:
C131: Šoupě DN80:1 | E131: 1 | M131: Šoupě DN80:1
A132: 33 | B132: 422737412.R | C132: Hydrant podzemní DUO K240, DN80/1,5 m | D132: kus | E132: 1 | G132: =E132*F132 -> 0 | H132: 0.0395 | I132: =E132*H132 -> 0.0395 | K132: =E132*J132 -> 0 | O132: 2 | AA132: 3 | AB132: 1 | AC132: 422737412.R | AZ132: 1 | BA132: =IF(AZ132=1,G132,0) -> 0 | BB132: =IF(AZ132=2,G132,0) -> 0 | BC132: =IF(AZ132=3,G132,0) -> 0 | BD132: =IF(AZ132=4,G132,0) -> 0 | BE132: =IF(AZ132=5,G132,0) -> 0 | CA132: 3 | CB132: 1
C133: Zaslepení stávajícího vodovodu TLT DN100: | E133: 0 | M133: Zaslepení stávajícího vodovodu TLT DN100:
C134: Hp DN80/1,5:1 | E134: 1 | M134: Hp DN80/1,5:1
A135: 34 | B135: 42293250.R | C135: Souprava zemní tel.9502E2/E3 DN50 -100, 1,3-1,8m | D135: kus | E135: 1 | G135: =E135*F135 -> 0 | H135: 0.0073 | I135: =E135*H135 -> 0.0073 | K135: =E135*J135 -> 0 | O135: 2 | AA135: 3 | AB135: 1 | AC135: 42293250.R | AZ135: 1 | BA135: =IF(AZ135=1,G135,0) -> 0 | BB135: =IF(AZ135=2,G135,0) -> 0 | BC135: =IF(AZ135=3,G135,0) -> 0 | BD135: =IF(AZ135=4,G135,0) -> 0 | BE135: =IF(AZ135=5,G135,0) -> 0 | CA135: 3 | CB135: 1
C136: Zaslepení stávajícího vodovodu TLT DN100: | E136: 0 | M136: Zaslepení stávajícího vodovodu TLT DN100:
C137: Pro Šoupě DN80:1 | E137: 1 | M137: Pro Šoupě DN80:1
A138: 35 | B138: 422935322.R | C138: Spojka Synoflex s přírubou redukovaný 7994, | D138: kus | E138: 1 | G138: =E138*F138 -> 0 | H138: 0.0071 | I138: =E138*H138 -> 0.0071 | K138: =E138*J138 -> 0 | O138: 2 | AA138: 3 | AB138: 1 | AC138: 422935322.R | AZ138: 1 | BA138: =IF(AZ138=1,G138,0) -> 0 | BB138: =IF(AZ138=2,G138,0) -> 0 | BC138: =IF(AZ138=3,G138,0) -> 0 | BD138: =IF(AZ138=4,G138,0) -> 0 | BE138: =IF(AZ138=5,G138,0) -> 0 | CA138: 3 | CB138: 1
C139: Spojka s přírubou redukovaná jištěná proti posunu pro všechny standardní materiály potrubí s velkým rozsahem vnějších průměrů potrubí a úhlovým vychýlením | L139: Spojka s přírubou redukovaná jištěná proti posunu pro všechny standardní materiály potrubí s velkým rozsahem vnějších průměrů potrubí a úhlovým vychýlením | O139: 3
C140: PROVEDENÍ: hrdlo - příruba | L140: PROVEDENÍ: hrdlo - příruba | O140: 3
C141: dle EN 14 525 | L141: dle EN 14 525 | O141: 3
C142: příruba a opěrný kroužek: dle EN 1092-2 PN10 (případně PN16) | L142: příruba a opěrný kroužek: dle EN 1092-2 PN10 (případně PN16) | O142: 3
C143: tělo a přítlačný kroužek: z tvárné litny EN-GJS-400 s povrchovou úpravou vířivým slinováním | L143: tělo a přítlačný kroužek: z tvárné litny EN-GJS-400 s povrchovou úpravou vířivým slinováním | O143: 3
C144: flexibilní těsnění: z elastomeru dle EN 681-1 (vhodné pro pitnou vodu) | L144: flexibilní těsnění: z elastomeru dle EN 681-1 (vhodné pro pitnou vodu) | O144: 3
C145: flexibilní Synoflex kroužek: z POM sestaven z jednotlivých segmentů | L145: flexibilní Synoflex kroužek: z POM sestaven z jednotlivých segmentů | O145: 3
C146: jistící prvky: z nekorodující oceli na každém segmentu kroužku | L146: jistící prvky: z nekorodující oceli na každém segmentu kroužku | O146: 3
C147: šrouby a matice: z nerezové oceli s povrchovou úpravou proti zadírání | L147: šrouby a matice: z nerezové oceli s povrchovou úpravou proti zadírání | O147: 3
C148: podložky: z nerezové oceli s ochrannou krytkou z elastomeru | L148: podložky: z nerezové oceli s ochrannou krytkou z elastomeru | O148: 3
C149: šrbouby: lze použít i otočené o 180° | L149: šrbouby: lze použít i otočené o 180° | O149: 3
C150: distanční objímky: z plastu | L150: distanční objímky: z plastu | O150: 3
C151: úhlové vychýlení (ČSN EN 14 525) | L151: úhlové vychýlení (ČSN EN 14 525) | O151: 3
C152: pro jištění tahových sil na PE potrubí doporučujeme instalaci rozpěrných pouzder (č. 6035, 6036) | L152: pro jištění tahových sil na PE potrubí doporučujeme instalaci rozpěrných pouzder (č. 6035, 6036) | O152: 3
C153: Zaslepení stávajícího vodovodu TLT DN100: | E153: 0 | M153: Zaslepení stávajícího vodovodu TLT DN100:
C154: Synoflex s přírubou redukovaný DN100/80 (100/85-105):1 | E154: 1 | M154: Synoflex s přírubou redukovaný DN100/80 (100/85-105):1
A155: 36 | B155: 5526009705.R | C155: Koleno prodloužené přír.s patkou PPL DN 80 | D155: kus | E155: 1 | G155: =E155*F155 -> 0 | H155: 0.0122 | I155: =E155*H155 -> 0.0122 | K155: =E155*J155 -> 0 | O155: 2 | AA155: 3 | AB155: 1 | AC155: 5526009705.R | AZ155: 1 | BA155: =IF(AZ155=1,G155,0) -> 0 | BB155: =IF(AZ155=2,G155,0) -> 0 | BC155: =IF(AZ155=3,G155,0) -> 0 | BD155: =IF(AZ155=4,G155,0) -> 0 | BE155: =IF(AZ155=5,G155,0) -> 0 | CA155: 3 | CB155: 1
C156: Zaslepení stávajícího vodovodu TLT DN100: | E156: 0 | M156: Zaslepení stávajícího vodovodu TLT DN100:
C157: PPL DN80:1 | E157: 1 | M157: PPL DN80:1
A158: 37 | B158: 592243594.R | C158: Skruž šachetní TBS-Q.1 1000/250/120 SP DEHA ATL | D158: kus | E158: 1.01 | G158: =E158*F158 -> 0 | H158: 0.254 | I158: =E158*H158 -> 0.25654 | K158: =E158*J158 -> 0 | O158: 2 | AA158: 3 | AB158: 1 | AC158: 592243594.R | AZ158: 1 | BA158: =IF(AZ158=1,G158,0) -> 0 | BB158: =IF(AZ158=2,G158,0) -> 0 | BC158: =IF(AZ158=3,G158,0) -> 0 | BD158: =IF(AZ158=4,G158,0) -> 0 | BE158: =IF(AZ158=5,G158,0) -> 0 | CA158: 3 | CB158: 1
C159: Zaslepení stávajícího vodovodu TLT DN100: | E159: 0 | M159: Zaslepení stávajícího vodovodu TLT DN100:
C160: Skruž H250 (ochrana Hp):1*1,01 | E160: 1.01 | M160: Skruž H250 (ochrana Hp):1*1,01
B161: Celkem za | C161: 8 Trubní vedení | G161: =SUM(G51:G160) -> 0 | I161: =SUM(I51:I160) -> 0.77919 | K161: =SUM(K51:K160) -> 0 | O161: 4 | BA161: =SUM(BA51:BA160) -> 0 | BB161: =SUM(BB51:BB160) -> 0 | BC161: =SUM(BC51:BC160) -> 0 | BD161: =SUM(BD51:BD160) -> 0 | BE161: =SUM(BE51:BE160) -> 0
A162: Díl: | B162: 99 | C162: Staveništní přesun hmot | O162: 1
A163: 38 | B163: 998273101R00 | C163: Přesun hmot, trubní vedení litinové, otevř. výkop | D163: t | E163: 2.2640332 | G163: =E163*F163 -> 0 | H163: 0 | I163: =E163*H163 -> 0 | K163: =E163*J163 -> 0 | O163: 2 | AA163: 7 | AB163: 1 | AC163: 2 | AZ163: 1 | BA163: =IF(AZ163=1,G163,0) -> 0 | BB163: =IF(AZ163=2,G163,0) -> 0 | BC163: =IF(AZ163=3,G163,0) -> 0 | BD163: =IF(AZ163=4,G163,0) -> 0 | BE163: =IF(AZ163=5,G163,0) -> 0 | CA163: 7 | CB163: 1
B164: Celkem za | C164: 99 Staveništní přesun hmot | G164: =SUM(G162:G163) -> 0 | I164: =SUM(I162:I163) -> 0 | K164: =SUM(K162:K163) -> 0 | O164: 4 | BA164: =SUM(BA162:BA163) -> 0 | BB164: =SUM(BB162:BB163) -> 0 | BC164: =SUM(BC162:BC163) -> 0 | BD164: =SUM(BD162:BD163) -> 0 | BE164: =SUM(BE162:BE163) -> 0

Sheet 003 3392003 KL
A1: POLOŽKOVÝ ROZPOČET
A2: Rozpočet | C2: 3392/003 | D2: Redukční šachta RŠ Klinkovice u čp.22 | F2: JKSO | G2: 827.11
A4: Objekt | F4: SKP
A5: 003 | C5: Redukční šachta RŠ Klinkovice u čp.22 | F5: Měrná jednotka | G5: m
A6: Stavba | F6: Počet jednotek | G6: 0
A7: 3392 | C7: Chuchelna - optimalizace vodovodní soustavy | F7: Náklady na m.j. | G7: =IF(G6=0,,ROUND((F30+F32)/G6,1)) -> 0
A8: Projektant | C8: Radek Hnát - VAK PROJEKT | F8: Typ rozpočtu
A9: Zpracovatel projektu
A10: Objednatel | C10: Vodohospodářské sdružení Turnov
A11: Dodavatel | C11: . | F11: Zakázkové číslo
A12: Rozpočtoval | F12: Počet listů
A13: ROZPOČTOVÉ NÁKLADY
A14: Základní rozpočtové náklady
B15: HSV celkem | C15: ='003 3392003 Rek'!E10 -> 0
A16: Z | B16: PSV celkem | C16: ='003 3392003 Rek'!F10 -> 0
A17: R | B17: M práce celkem | C17: ='003 3392003 Rek'!H10 -> 0
A18: N | B18: M dodávky celkem | C18: ='003 3392003 Rek'!G10 -> 0
A19: ZRN celkem | C19: =SUM(C15:C18) -> 0
A21: HZS | C21: ='003 3392003 Rek'!I10 -> 0
A22: ZRN+HZS | C22: =C19+C21 -> 0
A23: ZRN+ost.náklady+HZS | C23: =C22+G23 -> 0
A24: Vypracoval | D24: Za zhotovitele | F24: Za objednatele
A25: Jméno : | D25: Jméno : | F25: Jméno :
A26: Datum : | D26: Datum : | F26: Datum :
A28: Podpis : | D28: Podpis: | F28: Podpis:
A30: Základ pro DPH | C30: 21 | D30: % | F30: =C23-F32 -> 0
A31: DPH | C31: =C30 -> 21 | D31: % | F31: =ROUND(PRODUCT(F30,C31/100),0) -> 0
A32: Základ pro DPH | C32: 0 | D32: % | F32: 0
A33: DPH | C33: =C32 -> 0 | D33: % | F33: =ROUND(PRODUCT(F32,C33/100),0) -> 0
A34: CENA ZA OBJEKT CELKEM | F34: =ROUND(SUM(F30:F33),0) -> 0
A36: Poznámka :

Sheet 003 3392003 Rek
A1: Stavba : | C1: 3392 Chuchelna - optimalizace vodovodní soustavy | G1: Rozpočet : | H1: 3392/003
A2: Objekt : | C2: 003 Redukční šachta RŠ Klinkovice u čp.22 | G2: Redukční šachta RŠ Klinkovice u čp.22
A4: REKAPITULACE STAVEBNÍCH DÍLŮ
B6: Stavební díl | E6: HSV | F6: PSV | G6: Dodávka | H6: Montáž | I6: HZS
A7: ='003 3392003 Pol'!B7 -> 1 | B7: ='003 3392003 Pol'!C7 -> Zemní práce | E7: ='003 3392003 Pol'!BA10 -> 0 | F7: ='003 3392003 Pol'!BB10 -> 0 | G7: ='003 3392003 Pol'!BC10 -> 0 | H7: ='003 3392003 Pol'!BD10 -> 0 | I7: ='003 3392003 Pol'!BE10 -> 0
A8: ='003 3392003 Pol'!B11 -> 8 | B8: ='003 3392003 Pol'!C11 -> Trubní vedení | E8: ='003 3392003 Pol'!BA101 -> 0 | F8: ='003 3392003 Pol'!BB101 -> 0 | G8: ='003 3392003 Pol'!BC101 -> 0 | H8: ='003 3392003 Pol'!BD101 -> 0 | I8: ='003 3392003 Pol'!BE101 -> 0
A9: ='003 3392003 Pol'!B102 -> 99 | B9: ='003 3392003 Pol'!C102 -> Staveništní přesun hmot | E9: ='003 3392003 Pol'!BA104 -> 0 | F9: ='003 3392003 Pol'!BB104 -> 0 | G9: ='003 3392003 Pol'!BC104 -> 0 | H9: ='003 3392003 Pol'!BD104 -> 0 | I9: ='003 3392003 Pol'!BE104 -> 0
B10: CELKEM OBJEKT | E10: =SUM(E7:E9) -> 0 | F10: =SUM(F7:F9) -> 0 | G10: =SUM(G7:G9) -> 0 | H10: =SUM(H7:H9) -> 0 | I10: =SUM(I7:I9) -> 0

Sheet 003 3392003 Pol
A1: Položkový rozpočet
A3: Stavba : | C3: 3392 Chuchelna - optimalizace vodovodní soustavy | E3: Rozpočet: | F3: ='003 3392003 Rek'!H1 -> 3392/003
A4: Objekt : | C4: 003 Redukční šachta RŠ Klinkovice u čp.22 | E4: ='003 3392003 Rek'!G2 -> Redukční šachta RŠ Klinkovice u čp.22
A6: P.č. | B6: Číslo položky | C6: Název položky | D6: MJ | E6: množství | F6: cena / MJ | G6: celkem (Kč) | H6: Jednotková hmotnost | I6: Celková hmotnost | J6: Jednotková dem.hmot. | K6: Celková dem.hmot.
A7: Díl: | B7: 1 | C7: Zemní práce | O7: 1
A8: 1 | B8: 115101201R00 | C8: Čerpání vody na výšku do 10 m, přítok do 500 l/min | D8: h | E8: 20 | G8: =E8*F8 -> 0 | H8: 0 | I8: =E8*H8 -> 0 | J8: 0 | K8: =E8*J8 -> 0 | O8: 2 | AA8: 1 | AB8: 1 | AC8: 1 | AZ8: 1 | BA8: =IF(AZ8=1,G8,0) -> 0 | BB8: =IF(AZ8=2,G8,0) -> 0 | BC8: =IF(AZ8=3,G8,0) -> 0 | BD8: =IF(AZ8=4,G8,0) -> 0 | BE8: =IF(AZ8=5,G8,0) -> 0 | CA8: 1 | CB8: 1
C9: Vyčerpání objektu redukční šachty před zahájením prací včetně čerpání vody během realizace výměny technologie. | L9: Vyčerpání objektu redukční šachty před zahájením prací včetně čerpání vody během realizace výměny technologie. | O9: 3
B10: Celkem za | C10: 1 Zemní práce | G10: =SUM(G7:G9) -> 0 | I10: =SUM(I7:I9) -> 0 | K10: =SUM(K7:K9) -> 0 | O10: 4 | BA10: =SUM(BA7:BA9) -> 0 | BB10: =SUM(BB7:BB9) -> 0 | BC10: =SUM(BC7:BC9) -> 0 | BD10: =SUM(BD7:BD9) -> 0 | BE10: =SUM(BE7:BE9) -> 0
A11: Díl: | B11: 8 | C11: Trubní vedení | O11: 1
A12: 2 | B12: 899 90-8001.RRX | C12: Demontáž stávající armaturní sestavy RŠ | D12: soubor | E12: 1 | G12: =E12*F12 -> 0 | H12: 0 | I12: =E12*H12 -> 0 | K12: =E12*J12 -> 0 | O12: 2 | AA12: 11 | AB12: 2 | AC12: 22 | AZ12: 1 | BA12: =IF(AZ12=1,G12,0) -> 0 | BB12: =IF(AZ12=2,G12,0) -> 0 | BC12: =IF(AZ12=3,G12,0) -> 0 | BD12: =IF(AZ12=4,G12,0) -> 0 | BE12: =IF(AZ12=5,G12,0) -> 0 | CA12: 11 | CB12: 2
A13: 3 | B13: 722229106R00 | C13: Montáž vodovodních armatur,1závit, G 2 | D13: kus | E13: 2 | G13: =E13*F13 -> 0 | H13: 0 | I13: =E13*H13 -> 0 | J13: 0 | K13: =E13*J13 -> 0 | O13: 2 | AA13: 1 | AB13: 7 | AC13: 7 | AZ13: 1 | BA13: =IF(AZ13=1,G13,0) -> 0 | BB13: =IF(AZ13=2,G13,0) -> 0 | BC13: =IF(AZ13=3,G13,0) -> 0 | BD13: =IF(AZ13=4,G13,0) -> 0 | BE13: =IF(AZ13=5,G13,0) -> 0 | CA13: 1 | CB13: 7
C14: Redukční šachta u čp.22: | E14: 0 | M14: Redukční šachta u čp.22:
C15: Záslepka 2":2 | E15: 2 | M15: Záslepka 2":2
A16: 4 | B16: 857242121R00 | C16: Montáž tvarovek litin. jednoos.přír. výkop DN 80 včetně nerezových spoj. prvků a obandážování spoje | D16: kus | E16: 6 | G16: =E16*F16 -> 0 | H16: 0.00022 | I16: =E16*H16 -> 0.00132 | J16: 0 | K16: =E16*J16 -> 0 | O16: 2 | AA16: 1 | AB16: 1 | AC16: 1 | AZ16: 1 | BA16: =IF(AZ16=1,G16,0) -> 0 | BB16: =IF(AZ16=2,G16,0) -> 0 | BC16: =IF(AZ16=3,G16,0) -> 0 | BD16: =IF(AZ16=4,G16,0) -> 0 | BE16: =IF(AZ16=5,G16,0) -> 0 | CA16: 1 | CB16: 1
C17: Položka je určena pro montáž litinových tvarovek na potrubí litinovém tlakovém přírubovém jednoosých v otevřeném výkopu, v otevřeném kanálu nebo v šachtě. | L17: Položka je určena pro montáž litinových tvarovek na potrubí litinovém tlakovém přírubovém jednoosých v otevřeném výkopu, v otevřeném kanálu nebo v šachtě. | O17: 3
C18: Součástí položky je i dodávka nerezových spojovacích prvků (šrouby, podložky, matky) a kompletního obandážování spojů. | L18: Součástí položky je i dodávka nerezových spojovacích prvků (šrouby, podložky, matky) a kompletního obandážování spojů. | O18: 3
C19: Redukční šachta u čp.22: | E19: 0 | M19: Redukční šachta u čp.22:
C20: FFR DN80/50:2 | E20: 2 | M20: FFR DN80/50:2
C21: Q 90° DN80:2 | E21: 2 | M21: Q 90° DN80:2
C22: XG DN80/2":2 | E22: 2 | M22: XG DN80/2":2
A23: 5 | B23: 857242192R00 | C23: Příplatek za práce ve štole DN 80-250,lit.jednoos. | D23: kus | E23: 6 | G23: =E23*F23 -> 0 | H23: 0.00083 | I23: =E23*H23 -> 0.00498 | J23: 0 | K23: =E23*J23 -> 0 | O23: 2 | AA23: 1 | AB23: 1 | AC23: 1 | AZ23: 1 | BA23: =IF(AZ23=1,G23,0) -> 0 | BB23: =IF(AZ23=2,G23,0) -> 0 | BC23: =IF(AZ23=3,G23,0) -> 0 | BD23: =IF(AZ23=4,G23,0) -> 0 | BE23: =IF(AZ23=5,G23,0) -> 0 | CA23: 1 | CB23: 1
C24: Položka je určena pro montáž litinových tvarovek na potrubí litinovém tlakovém přírubovém, jedoosých, ve štole, v uzavřeném kanálu, nebo v objektech. | L24: Položka je určena pro montáž litinových tvarovek na potrubí litinovém tlakovém přírubovém, jedoosých, ve štole, v uzavřeném kanálu, nebo v objektech. | O24: 3
C25: Redukční šachta u čp.22: | E25: 0 | M25: Redukční šachta u čp.22:
C26: FFR DN80/50:2 | E26: 2 | M26: FFR DN80/50:2
C27: Q 90° DN80:2 | E27: 2 | M27: Q 90° DN80:2
C28: XG DN80/2":2 | E28: 2 | M28: XG DN80/2":2
A29: 6 | B29: 857244121R00 | C29: Montáž tvarovek litin. odboč. přír. výkop DN 80 včetně nerezových spoj. prvků a obandážování spoje | D29: kus | E29: 2 | G29: =E29*F29 -> 0 | H29: 0.00032 | I29: =E29*H29 -> 0.00064 | J29: 0 | K29: =E29*J29 -> 0 | O29: 2 | AA29: 1 | AB29: 1 | AC29: 1 | AZ29: 1 | BA29: =IF(AZ29=1,G29,0) -> 0 | BB29: =IF(AZ29=2,G29,0) -> 0 | BC29: =IF(AZ29=3,G29,0) -> 0 | BD29: =IF(AZ29=4,G29,0) -> 0 | BE29: =IF(AZ29=5,G29,0) -> 0 | CA29: 1 | CB29: 1
C30: Položka je určena pro montáž litinových tvarovek na potrubí litinovém tlakovém přírubovém odbočných v otevřeném výkopu, v otevřeném kanálu nebo v šachtě. | L30: Položka je určena pro montáž litinových tvarovek na potrubí litinovém tlakovém přírubovém odbočných v otevřeném výkopu, v otevřeném kanálu nebo v šachtě. | O30: 3
C31: Součástí položky je i dodávka nerezových spojovacích prvků (šrouby, podložky, matky) a kompletního obandážování spojů. | L31: Součástí položky je i dodávka nerezových spojovacích prvků (šrouby, podložky, matky) a kompletního obandážování spojů. | O31: 3
C32: Redukční šachta u čp.22: | E32: 0 | M32: Redukční šachta u čp.22:
C33: T DN80/80:2 | E33: 2 | M33: T DN80/80:2
A34: 7 | B34: 857244192R00 | C34: Příplatek za práce ve štole DN 80-250,lit.odboč. | D34: kus | E34: 2 | G34: =E34*F34 -> 0 | H34: 0.00117 | I34: =E34*H34 -> 0.00234 | J34: 0 | K34: =E34*J34 -> 0 | O34: 2 | AA34: 1 | AB34: 1 | AC34: 1 | AZ34: 1 | BA34: =IF(AZ34=1,G34,0) -> 0 | BB34: =IF(AZ34=2,G34,0) -> 0 | BC34: =IF(AZ34=3,G34,0) -> 0 | BD34: =IF(AZ34=4,G34,0) -> 0 | BE34: =IF(AZ34=5,G34,0) -> 0 | CA34: 1 | CB34: 1
C35: Redukční šachta u čp.22: | E35: 0 | M35: Redukční šachta u čp.22:
C36: T DN80/80:2 | E36: 2 | M36: T DN80/80:2
A37: 8 | B37: 891213431R00 | C37: Montáž ventilů regulačních v objektech DN 50 včetně nerezových spoj. prvků a obandážování spoje | D37: kus | E37: 1 | G37: =E37*F37 -> 0 | H37: 0.00047 | I37: =E37*H37 -> 0.00047 | J37: 0 | K37: =E37*J37 -> 0 | O37: 2 | AA37: 1 | AB37: 1 | AC37: 1 | AZ37: 1 | BA37: =IF(AZ37=1,G37,0) -> 0 | BB37: =IF(AZ37=2,G37,0) -> 0 | BC37: =IF(AZ37=3,G37,0) -> 0 | BD37: =IF(AZ37=4,G37,0) -> 0 | BE37: =IF(AZ37=5,G37,0) -> 0 | CA37: 1 | CB37: 1
C38: Položka je určena pro montáž ventilů regulačních v objektech. | L38: Položka je určena pro montáž ventilů regulačních v objektech. | O38: 3
C39: Součástí položky je i dodávka nerezových spojovacích prvků (šrouby, podložky, matky) a kompletního obandážování spojů. | L39: Součástí položky je i dodávka nerezových spojovacích prvků (šrouby, podložky, matky) a kompletního obandážování spojů. | O39: 3
C40: Redukční šachta u čp.22: | E40: 0 | M40: Redukční šachta u čp.22:
C41: Regulátor tlaku DN50:1 | E41: 1 | M41: Regulátor tlaku DN50:1
A42: 9 | B42: 891214121R00 | C42: Montáž kompenzátorů, montážních vložek DN 50 včetně nerezových spoj. prvků a obandážování spoje | D42: kus | E42: 1 | G42: =E42*F42 -> 0 | H42: 0.00021 | I42: =E42*H42 -> 0.00021 | J42: 0 | K42: =E42*J42 -> 0 | O42: 2 | AA42: 1 | AB42: 1 | AC42: 1 | AZ42: 1 | BA42: =IF(AZ42=1,G42,0) -> 0 | BB42: =IF(AZ42=2,G42,0) -> 0 | BC42: =IF(AZ42=3,G42,0) -> 0 | BD42: =IF(AZ42=4,G42,0) -> 0 | BE42: =IF(AZ42=5,G42,0) -> 0 | CA42: 1 | CB42: 1
C43: Položka je určena pro montáž kompenzátorů ucpávkových a gumových nebo montážních vložek na potrubí. | L43: Položka je určena pro montáž kompenzátorů ucpávkových a gumových nebo montážních vložek na potrubí. | O43: 3
C44: Součástí položky je i dodávka nerezových spojovacích prvků (šrouby, podložky, matky) a kompletního obandážování spojů. | L44: Součástí položky je i dodávka nerezových spojovacích prvků (šrouby, podložky, matky) a kompletního obandážování spojů. | O44: 3
C45: Redukční šachta u čp.22: | E45: 0 | M45: Redukční šachta u čp.22:
C46: Montážní vložka DN50:1 | E46: 1 | M46: Montážní vložka DN50:1
A47: 10 | B47: 891215321R00 | C47: Montáž zpětných klapek a filtrů DN 50 včetně nerezových spoj. prvků a obandážování spoje | D47: kus | E47: 1 | G47: =E47*F47 -> 0 | H47: 0.00021 | I47: =E47*H47 -> 0.00021 | J47: 0 | K47: =E47*J47 -> 0 | O47: 2 | AA47: 1 | AB47: 1 | AC47: 1 | AZ47: 1 | BA47: =IF(AZ47=1,G47,0) -> 0 | BB47: =IF(AZ47=2,G47,0) -> 0 | BC47: =IF(AZ47=3,G47,0) -> 0 | BD47: =IF(AZ47=4,G47,0) -> 0 | BE47: =IF(AZ47=5,G47,0) -> 0 | CA47: 1 | CB47: 1
C48: Položka je určena pro montáž zpětných klapek nebo filtrů na potrubí. | L48: Položka je určena pro montáž zpětných klapek nebo filtrů na potrubí. | O48: 3
C49: Součástí položky je i dodávka nerezových spojovacích prvků (šrouby, podložky, matky) a kompletního obandážování spojů. | L49: Součástí položky je i dodávka nerezových spojovacích prvků (šrouby, podložky, matky) a kompletního obandážování spojů. | O49: 3
C50: Redukční šachta u čp.22: | E50: 0 | M50: Redukční šachta u čp.22:
C51: Lapač nečistot (filtr) DN50:1 | E51: 1 | M51: Lapač nečistot (filtr) DN50:1
A52: 11 | B52: 891241221R00 | C52: Montáž vodovod. šoupátek šacht. kolečko DN 80 včetně nerezových spoj. prvků a obandážování spoje | D52: kus | E52: 4 | G52: =E52*F52 -> 0 | H52: 0.00022 | I52: =E52*H52 -> 0.00088 | J52: 0 | K52: =E52*J52 -> 0 | O52: 2 | AA52: 1 | AB52: 1 | AC52: 1 | AZ52: 1 | BA52: =IF(AZ52=1,G52,0) -> 0 | BB52: =IF(AZ52=2,G52,0) -> 0 | BC52: =IF(AZ52=3,G52,0) -> 0 | BD52: =IF(AZ52=4,G52,0) -> 0 | BE52: =IF(AZ52=5,G52,0) -> 0 | CA52: 1 | CB52: 1
C53: Položka je určena pro montáž vodovodních šoupátek v šachtách s ručním kolečkem. | L53: Položka je určena pro montáž vodovodních šoupátek v šachtách s ručním kolečkem. | O53: 3
C54: Součástí položky je i dodávka nerezových spojovacích prvků (šrouby, podložky, matky) a kompletního obandážování spojů. | L54: Součástí položky je i dodávka nerezových spojovacích prvků (šrouby, podložky, matky) a kompletního obandážování spojů. | O54: 3
C55: Redukční šachta u čp.22: | E55: 0 | M55: Redukční šachta u čp.22:
C56: Šoupě DN80:4 | E56: 4 | M56: Šoupě DN80:4
A57: 12 | B57: 892271111RRX | C57: Tlaková zkouška vodovodního potrubí DN 125 včetně zajištění konců potrubí | D57: soubor | E57: 1 | G57: =E57*F57 -> 0 | H57: 0 | I57: =E57*H57 -> 0 | J57: 0 | K57: =E57*J57 -> 0 | O57: 2 | AA57: 1 | AB57: 1 | AC57: 1 | AZ57: 1 | BA57: =IF(AZ57=1,G57,0) -> 0 | BB57: =IF(AZ57=2,G57,0) -> 0 | BC57: =IF(AZ57=3,G57,0) -> 0 | BD57: =IF(AZ57=4,G57,0) -> 0 | BE57: =IF(AZ57=5,G57,0) -> 0 | CA57: 1 | CB57: 1
C58: V položce jsou započteny náklady na přísun, montáž, demontáž a odsun zkoušecího čerpadla, napuštění tlakovou vodou a dodání vody pro tlakovou zkoušku. | L58: V položce jsou započteny náklady na přísun, montáž, demontáž a odsun zkoušecího čerpadla, napuštění tlakovou vodou a dodání vody pro tlakovou zkoušku. | O58: 3
A59: 13 | B59: 892273111RRX | C59: Desinfekce vodovodního potrubí DN 125 | D59: soubor | E59: 1 | G59: =E59*F59 -> 0 | H59: 0 | I59: =E59*H59 -> 0 | J59: 0 | K59: =E59*J59 -> 0 | O59: 2 | AA59: 1 | AB59: 1 | AC59: 1 | AZ59: 1 | BA59: =IF(AZ59=1,G59,0) -> 0 | BB59: =IF(AZ59=2,G59,0) -> 0 | BC59: =IF(AZ59=3,G59,0) -> 0 | BD59: =IF(AZ59=4,G59,0) -> 0 | BE59: =IF(AZ59=5,G59,0) -> 0 | CA59: 1 | CB59: 1
C60: V položce jsou zakalkulovány náklady na napuštění a vypuštění vody, dodání vody a desinfekčního prostředku a na bakteriologický rozbor vody. | L60: V položce jsou zakalkulovány náklady na napuštění a vypuštění vody, dodání vody a desinfekčního prostředku a na bakteriologický rozbor vody. | O60: 3
A61: 14 | B61: 28655148.R | C61: Mosazná zátka 2" | D61: kus | E61: 2 | G61: =E61*F61 -> 0 | H61: 0.00036 | I61: =E61*H61 -> 0.00072 | K61: =E61*J61 -> 0 | O61: 2 | AA61: 3 | AB61: 1 | AC61: 28655148.R | AZ61: 1 | BA61: =IF(AZ61=1,G61,0) -> 0 | BB61: =IF(AZ61=2,G61,0) -> 0 | BC61: =IF(AZ61=3,G61,0) -> 0 | BD61: =IF(AZ61=4,G61,0) -> 0 | BE61: =IF(AZ61=5,G61,0) -> 0 | CA61: 3 | CB61: 1
C62: Redukční šachta u čp.22: | E62: 0 | M62: Redukční šachta u čp.22:
C63: Záslepka 2":2 | E63: 2 | M63: Záslepka 2":2
A64: 15 | B64: 42201500.03.R | C64: Regulátor tlaku HAWIDO DN 50 č. 1500 | D64: kus | E64: 1 | G64: =E64*F64 -> 0 | H64: 0.0113 | I64: =E64*H64 -> 0.0113 | K64: =E64*J64 -> 0 | O64: 2 | AA64: 3 | AB64: 1 | AC64: 42201500.03.R | AZ64: 1 | BA64: =IF(AZ64=1,G64,0) -> 0 | BB64: =IF(AZ64=2,G64,0) -> 0 | BC64: =IF(AZ64=3,G64,0) -> 0 | BD64: =IF(AZ64=4,G64,0) -> 0 | BE64: =IF(AZ64=5,G64,0) -> 0 | CA64: 3 | CB64: 1
C65: Nastavení tlaku dle projektové dokumentace. | L65: Nastavení tlaku dle projektové dokumentace. | O65: 3
C66: Redukční šachta u čp.22: | E66: 0 | M66: Redukční šachta u čp.22:
C67: Regulátor tlaku DN50:1 | E67: 1 | M67: Regulátor tlaku DN50:1
A68: 16 | B68: 42207800.01.R | C68: Ruční kolo pro šoupátko DN 80 | D68: kus | E68: 4 | G68: =E68*F68 -> 0 | H68: 0.0062 | I68: =E68*H68 -> 0.0248 | K68: =E68*J68 -> 0 | O68: 2 | AA68: 3 | AB68: 1 | AC68: 42207800.01.R | AZ68: 1 | BA68: =IF(AZ68=1,G68,0) -> 0 | BB68: =IF(AZ68=2,G68,0) -> 0 | BC68: =IF(AZ68=3,G68,0) -> 0 | BD68: =IF(AZ68=4,G68,0) -> 0 | BE68: =IF(AZ68=5,G68,0) -> 0 | CA68: 3 | CB68: 1
C69: Ruční kolo uzavírací pro šoupátka z šsdé litiny GG 250 s epoxidovou ochrannou vrstvou. | L69: Ruční kolo uzavírací pro šoupátka z šsdé litiny GG 250 s epoxidovou ochrannou vrstvou. | O69: 3
C70: Pro Š DN65-80. | L70: Pro Š DN65-80. | O70: 3
C71: Redukční šachta u čp.22: | E71: 0 | M71: Redukční šachta u čp.22:
C72: Pro Šoupě DN80:4 | E72: 4 | M72: Pro Šoupě DN80:4
A73: 17 | B73: 42208011.02.R | C73: Tvarovka VARIO + svorníky DN50 (L=150-207) č. 8010 | D73: kus | E73: 1 | G73: =E73*F73 -> 0 | H73: 0.01008 | I73: =E73*H73 -> 0.01008 | K73: =E73*J73 -> 0 | O73: 2 | AA73: 3 | AB73: 1 | AC73: 42208011.02.R | AZ73: 1 | BA73: =IF(AZ73=1,G73,0) -> 0 | BB73: =IF(AZ73=2,G73,0) -> 0 | BC73: =IF(AZ73=3,G73,0) -> 0 | BD73: =IF(AZ73=4,G73,0) -> 0 | BE73: =IF(AZ73=5,G73,0) -> 0 | CA73: 3 | CB73: 1
O74: 3
C75: Redukční šachta u čp.22: | E75: 0 | M75: Redukční šachta u čp.22:
C76: Montážní vložka DN50:1 | E76: 1 | M76: Montážní vložka DN50:1
A77: 18 | B77: 42209910.01.R | C77: Lapač nečistot DN 50 č. 9910 | D77: kus | E77: 1 | G77: =E77*F77 -> 0 | H77: 0.0028 | I77: =E77*H77 -> 0.0028 | K77: =E77*J77 -> 0 | O77: 2 | AA77: 3 | AB77: 1 | AC77: 42209910.01.R | AZ77: 1 | BA77: =IF(AZ77=1,G77,0) -> 0 | BB77: =IF(AZ77=2,G77,0) -> 0 | BC77: =IF(AZ77=3,G77,0) -> 0 | BD77: =IF(AZ77=4,G77,0) -> 0 | BE77: =IF(AZ77=5,G77,0) -> 0 | CA77: 3 | CB77: 1
C78: Redukční šachta u čp.22: | E78: 0 | M78: Redukční šachta u čp.22:
C79: Lapač nečistot (filtr) DN50:1 | E79: 1 | M79: Lapač nečistot (filtr) DN50:1
A80: 19 | B80: 42228310.R3 | C80: Šoupátko 4000E3 DN 80 přírubové, voda PN16 krátké L=180 mm | D80: kus | E80: 4 | G80: =E80*F80 -> 0 | H80: 0.0165 | I80: =E80*H80 -> 0.066 | K80: =E80*J80 -> 0 | O80: 2 | AA80: 3 | AB80: 1 | AC80: 42228310.R3 | AZ80: 1 | BA80: =IF(AZ80=1,G80,0) -> 0 | BB80: =IF(AZ80=2,G80,0) -> 0 | BC80: =IF(AZ80=3,G80,0) -> 0 | BD80: =IF(AZ80=4,G80,0) -> 0 | BE80: =IF(AZ80=5,G80,0) -> 0 | CA80: 3 | CB80: 1
C81: Šoupátko přírubové krkové - měkcetěsnící klínové šoupátko s hladkým a volným průtokovým kanálem | L81: Šoupátko přírubové krkové - měkcetěsnící klínové šoupátko s hladkým a volným průtokovým kanálem | O81: 3
C82: č. 4000E3 krátké L=180 mm | L82: č. 4000E3 krátké L=180 mm | O82: 3
C83: PN 16 | L83: PN 16 | O83: 3
C84: DN 80 | L84: DN 80 | O84: 3
C85: těleso a víko: tvárná litina GGG 400 - DIN 1693 | L85: těleso a víko: tvárná litina GGG 400 - DIN 1693 | O85: 3
C86: medium: pitná voda, neagresivní odpadní voda | L86: medium: pitná voda, neagresivní odpadní voda | O86: 3
C87: Redukční šachta u čp.22: | E87: 0 | M87: Redukční šachta u čp.22:
C88: Šoupě DN80:4 | E88: 4 | M88: Šoupě DN80:4
A89: 20 | B89: 55259811.R | C89: Přechod přír. FFR DN 80/ 50 | D89: kus | E89: 2 | G89: =E89*F89 -> 0 | H89: 0.0073 | I89: =E89*H89 -> 0.0146 | K89: =E89*J89 -> 0 | O89: 2 | AA89: 3 | AB89: 1 | AC89: 55259811.R | AZ89: 1 | BA89: =IF(AZ89=1,G89,0) -> 0 | BB89: =IF(AZ89=2,G89,0) -> 0 | BC89: =IF(AZ89=3,G89,0) -> 0 | BD89: =IF(AZ89=4,G89,0) -> 0 | BE89: =IF(AZ89=5,G89,0) -> 0 | CA89: 3 | CB89: 1
C90: Redukční šachta u čp.22: | E90: 0 | M90: Redukční šachta u čp.22:
C91: FFR DN80/50:2 | E91: 2 | M91: FFR DN80/50:2
A92: 21 | B92: 55259982.R | C92: Koleno přírubové Q DN 80-90° | D92: kus | E92: 2 | G92: =E92*F92 -> 0 | H92: 0.009 | I92: =E92*H92 -> 0.018 | K92: =E92*J92 -> 0 | O92: 2 | AA92: 3 | AB92: 1 | AC92: 55259982.R | AZ92: 1 | BA92: =IF(AZ92=1,G92,0) -> 0 | BB92: =IF(AZ92=2,G92,0) -> 0 | BC92: =IF(AZ92=3,G92,0) -> 0 | BD92: =IF(AZ92=4,G92,0) -> 0 | BE92: =IF(AZ92=5,G92,0) -> 0 | CA92: 3 | CB92: 1
C93: Redukční šachta u čp.22: | E93: 0 | M93: Redukční šachta u čp.22:
C94: Q 90° DN80:2 | E94: 2 | M94: Q 90° DN80:2
A95: 22 | B95: 552599939.R | C95: Tvarovka přír. s přír. odb. T DN 80/80 | D95: kus | E95: 2 | G95: =E95*F95 -> 0 | H95: 0.0149 | I95: =E95*H95 -> 0.0298 | K95: =E95*J95 -> 0 | O95: 2 | AA95: 3 | AB95: 1 | AC95: 552599939.R | AZ95: 1 | BA95: =IF(AZ95=1,G95,0) -> 0 | BB95: =IF(AZ95=2,G95,0) -> 0 | BC95: =IF(AZ95=3,G95,0) -> 0 | BD95: =IF(AZ95=4,G95,0) -> 0 | BE95: =IF(AZ95=5,G95,0) -> 0 | CA95: 3 | CB95: 1
C96: Redukční šachta u čp.22: | E96: 0 | M96: Redukční šachta u čp.22:
C97: T DN80/80:2 | E97: 2 | M97: T DN80/80:2
A98: 23 | B98: 55260055.R | C98: Příruba zaslepovací XG DN 80 závit 2" | D98: kus | E98: 2 | G98: =E98*F98 -> 0 | H98: 0.0037 | I98: =E98*H98 -> 0.0074 | K98: =E98*J98 -> 0 | O98: 2 | AA98: 3 | AB98: 1 | AC98: 55260055.R | AZ98: 1 | BA98: =IF(AZ98=1,G98,0) -> 0 | BB98: =IF(AZ98=2,G98,0) -> 0 | BC98: =IF(AZ98=3,G98,0) -> 0 | BD98: =IF(AZ98=4,G98,0) -> 0 | BE98: =IF(AZ98=5,G98,0) -> 0 | CA98: 3 | CB98: 1
C99: Redukční šachta u čp.22: | E99: 0 | M99: Redukční šachta u čp.22:
C100: XG DN80/2":2 | E100: 2 | M100: XG DN80/2":2
B101: Celkem za | C101: 8 Trubní vedení | G101: =SUM(G11:G100) -> 0 | I101: =SUM(I11:I100) -> 0.19655 | K101: =SUM(K11:K100) -> 0 | O101: 4 | BA101: =SUM(BA11:BA100) -> 0 | BB101: =SUM(BB11:BB100) -> 0 | BC101: =SUM(BC11:BC100) -> 0 | BD101: =SUM(BD11:BD100) -> 0 | BE101: =SUM(BE11:BE100) -> 0
A102: Díl: | B102: 99 | C102: Staveništní přesun hmot | O102: 1
A103: 24 | B103: 998273101R00 | C103: Přesun hmot, trubní vedení litinové, otevř. výkop | D103: t | E103: 0.19655 | G103: =E103*F103 -> 0 | H103: 0 | I103: =E103*H103 -> 0 | K103: =E103*J103 -> 0 | O103: 2 | AA103: 7 | AB103: 1 | AC103: 2 | AZ103: 1 | BA103: =IF(AZ103=1,G103,0) -> 0 | BB103: =IF(AZ103=2,G103,0) -> 0 | BC103: =IF(AZ103=3,G103,0) -> 0 | BD103: =IF(AZ103=4,G103,0) -> 0 | BE103: =IF(AZ103=5,G103,0) -> 0 | CA103: 7 | CB103: 1
B104: Celkem za | C104: 99 Staveništní přesun hmot | G104: =SUM(G102:G103) -> 0 | I104: =SUM(I102:I103) -> 0 | K104: =SUM(K102:K103) -> 0 | O104: 4 | BA104: =SUM(BA102:BA103) -> 0 | BB104: =SUM(BB102:BB103) -> 0 | BC104: =SUM(BC102:BC103) -> 0 | BD104: =SUM(BD102:BD103) -> 0 | BE104: =SUM(BE102:BE103) -> 0

Sheet 004 3392004 KL
A1: POLOŽKOVÝ ROZPOČET
A2: Rozpočet | C2: 3392/004 | D2: Redukční šachta RŠ Klinkovice u čp.144 | F2: JKSO | G2: 827.11
A4: Objekt | F4: SKP
A5: 004 | C5: Redukční šachta RŠ Klinkovice u čp.144 | F5: Měrná jednotka | G5: m
A6: Stavba | F6: Počet jednotek | G6: 0
A7: 3392 | C7: Chuchelna - optimalizace vodovodní soustavy | F7: Náklady na m.j. | G7: =IF(G6=0,,ROUND((F30+F32)/G6,1)) -> 0
A8: Projektant | C8: Radek Hnát - VAK PROJEKT | F8: Typ rozpočtu
A9: Zpracovatel projektu
A10: Objednatel | C10: Vodohospodářské sdružení Turnov
A11: Dodavatel | C11: . | F11: Zakázkové číslo
A12: Rozpočtoval | F12: Počet listů
A13: ROZPOČTOVÉ NÁKLADY
A14: Základní rozpočtové náklady
B15: HSV celkem | C15: ='004 3392004 Rek'!E10 -> 0
A16: Z | B16: PSV celkem | C16: ='004 3392004 Rek'!F10 -> 0
A17: R | B17: M práce celkem | C17: ='004 3392004 Rek'!H10 -> 0
A18: N | B18: M dodávky celkem | C18: ='004 3392004 Rek'!G10 -> 0
A19: ZRN celkem | C19: =SUM(C15:C18) -> 0
A21: HZS | C21: ='004 3392004 Rek'!I10 -> 0
A22: ZRN+HZS | C22: =C19+C21 -> 0
A23: ZRN+ost.náklady+HZS | C23: =C22+G23 -> 0
A24: Vypracoval | D24: Za zhotovitele | F24: Za objednatele
A25: Jméno : | D25: Jméno : | F25: Jméno :
A26: Datum : | D26: Datum : | F26: Datum :
A28: Podpis : | D28: Podpis: | F28: Podpis:
A30: Základ pro DPH | C30: 21 | D30: % | F30: =C23-F32 -> 0
A31: DPH | C31: =C30 -> 21 | D31: % | F31: =ROUND(PRODUCT(F30,C31/100),0) -> 0
A32: Základ pro DPH | C32: 0 | D32: % | F32: 0
A33: DPH | C33: =C32 -> 0 | D33: % | F33: =ROUND(PRODUCT(F32,C33/100),0) -> 0
A34: CENA ZA OBJEKT CELKEM | F34: =ROUND(SUM(F30:F33),0) -> 0
A36: Poznámka :

Sheet 004 3392004 Rek
A1: Stavba : | C1: 3392Chuchelna - optimalizace vodovodní soustavy | G1: Rozpočet : | H1: 3392/004
A2: Objekt : | C2: 004 Redukční šachta RŠ Klinkovice u čp.144 | G2: Redukční šachta RŠ Klinkovice u čp.144
A4: REKAPITULACE STAVEBNÍCH DÍLŮ
B6: Stavební díl | E6: HSV | F6: PSV | G6: Dodávka | H6: Montáž | I6: HZS
A7: ='004 3392004 Pol'!B7 -> 1 | B7: ='004 3392004 Pol'!C7 -> Zemní práce | E7: ='004 3392004 Pol'!BA10 -> 0 | F7: ='004 3392004 Pol'!BB10 -> 0 | G7: ='004 3392004 Pol'!BC10 -> 0 | H7: ='004 3392004 Pol'!BD10 -> 0 | I7: ='004 3392004 Pol'!BE10 -> 0
A8: ='004 3392004 Pol'!B11 -> 8 | B8: ='004 3392004 Pol'!C11 -> Trubní vedení | E8: ='004 3392004 Pol'!BA84 -> 0 | F8: ='004 3392004 Pol'!BB84 -> 0 | G8: ='004 3392004 Pol'!BC84 -> 0 | H8: ='004 3392004 Pol'!BD84 -> 0 | I8: ='004 3392004 Pol'!BE84 -> 0
A9: ='004 3392004 Pol'!B85 -> 99 | B9: ='004 3392004 Pol'!C85 -> Staveništní přesun hmot | E9: ='004 3392004 Pol'!BA87 -> 0 | F9: ='004 3392004 Pol'!BB87 -> 0 | G9: ='004 3392004 Pol'!BC87 -> 0 | H9: ='004 3392004 Pol'!BD87 -> 0 | I9: ='004 3392004 Pol'!BE87 -> 0
B10: CELKEM OBJEKT | E10: =SUM(E7:E9) -> 0 | F10: =SUM(F7:F9) -> 0 | G10: =SUM(G7:G9) -> 0 | H10: =SUM(H7:H9) -> 0 | I10: =SUM(I7:I9) -> 0

Sheet 004 3392004 Pol
A1: Položkový rozpočet
A3: Stavba : | C3: 3392 Chuchelna - optimalizace vodovodní soustavy | E3: Rozpočet: | F3: ='004 3392004 Rek'!H1 -> 3392/004
A4: Objekt : | C4: 004 Redukční šachta RŠ Klinkovice u čp.144 | E4: ='004 3392004 Rek'!G2 -> Redukční šachta RŠ Klinkovice u čp.144
A6: P.č. | B6: Číslo položky | C6: Název položky | D6: MJ | E6: množství | F6: cena / MJ | G6: celkem (Kč) | H6: Jednotková hmotnost | I6: Celková hmotnost | J6: Jednotková dem.hmot. | K6: Celková dem.hmot.
A7: Díl: | B7: 1 | C7: Zemní práce | O7: 1
A8: 1 | B8: 115101201R00 | C8: Čerpání vody na výšku do 10 m, přítok do 500 l/min | D8: h | E8: 15 | G8: =E8*F8 -> 0 | H8: 0 | I8: =E8*H8 -> 0 | J8: 0 | K8: =E8*J8 -> 0 | O8: 2 | AA8: 1 | AB8: 1 | AC8: 1 | AZ8: 1 | BA8: =IF(AZ8=1,G8,0) -> 0 | BB8: =IF(AZ8=2,G8,0) -> 0 | BC8: =IF(AZ8=3,G8,0) -> 0 | BD8: =IF(AZ8=4,G8,0) -> 0 | BE8: =IF(AZ8=5,G8,0) -> 0 | CA8: 1 | CB8: 1
C9: Vyčerpání objektu redukční šachty před zahájením prací včetně čerpání vody během realizace výměny technologie. | L9: Vyčerpání objektu redukční šachty před zahájením prací včetně čerpání vody během realizace výměny technologie. | O9: 3
B10: Celkem za | C10: 1 Zemní práce | G10: =SUM(G7:G9) -> 0 | I10: =SUM(I7:I9) -> 0 | K10: =SUM(K7:K9) -> 0 | O10: 4 | BA10: =SUM(BA7:BA9) -> 0 | BB10: =SUM(BB7:BB9) -> 0 | BC10: =SUM(BC7:BC9) -> 0 | BD10: =SUM(BD7:BD9) -> 0 | BE10: =SUM(BE7:BE9) -> 0
A11: Díl: | B11: 8 | C11: Trubní vedení | O11: 1
A12: 2 | B12: 899 90-8002.RRX | C12: Demontáž stávající armaturní sestavy RŠ | D12: soubor | E12: 1 | G12: =E12*F12 -> 0 | H12: 0 | I12: =E12*H12 -> 0 | K12: =E12*J12 -> 0 | O12: 2 | AA12: 11 | AB12: 2 | AC12: 1 | AZ12: 1 | BA12: =IF(AZ12=1,G12,0) -> 0 | BB12: =IF(AZ12=2,G12,0) -> 0 | BC12: =IF(AZ12=3,G12,0) -> 0 | BD12: =IF(AZ12=4,G12,0) -> 0 | BE12: =IF(AZ12=5,G12,0) -> 0 | CA12: 11 | CB12: 2
A13: 3 | B13: 857242121R00 | C13: Montáž tvarovek litin. jednoos.přír. výkop DN 80 včetně nerezových spoj. prvků a obandážování spoje | D13: kus | E13: 4 | G13: =E13*F13 -> 0 | H13: 0.00022 | I13: =E13*H13 -> 0.00088 | J13: 0 | K13: =E13*J13 -> 0 | O13: 2 | AA13: 1 | AB13: 1 | AC13: 1 | AZ13: 1 | BA13: =IF(AZ13=1,G13,0) -> 0 | BB13: =IF(AZ13=2,G13,0) -> 0 | BC13: =IF(AZ13=3,G13,0) -> 0 | BD13: =IF(AZ13=4,G13,0) -> 0 | BE13: =IF(AZ13=5,G13,0) -> 0 | CA13: 1 | CB13: 1
C14: Položka je určena pro montáž litinových tvarovek na potrubí litinovém tlakovém přírubovém jednoosých v otevřeném výkopu, v otevřeném kanálu nebo v šachtě. | L14: Položka je určena pro montáž litinových tvarovek na potrubí litinovém tlakovém přírubovém jednoosých v otevřeném výkopu, v otevřeném kanálu nebo v šachtě. | O14: 3
C15: Součástí položky je i dodávka nerezových spojovacích prvků (šrouby, podložky, matky) a kompletního obandážování spojů. | L15: Součástí položky je i dodávka nerezových spojovacích prvků (šrouby, podložky, matky) a kompletního obandážování spojů. | O15: 3
C16: Redukční šachta u čp.144: | E16: 0 | M16: Redukční šachta u čp.144:
C17: FFR DN80/50:2 | E17: 2 | M17: FFR DN80/50:2
C18: XG DN50/2":1 | E18: 1 | M18: XG DN50/2":1
C19: FF DN50/100:1 | E19: 1 | M19: FF DN50/100:1
A20: 4 | B20: 857242192R00 | C20: Příplatek za práce ve štole DN 80-250,lit.jednoos. | D20: kus | E20: 4 | G20: =E20*F20 -> 0 | H20: 0.00083 | I20: =E20*H20 -> 0.00332 | J20: 0 | K20: =E20*J20 -> 0 | O20: 2 | AA20: 1 | AB20: 1 | AC20: 1 | AZ20: 1 | BA20: =IF(AZ20=1,G20,0) -> 0 | BB20: =IF(AZ20=2,G20,0) -> 0 | BC20: =IF(AZ20=3,G20,0) -> 0 | BD20: =IF(AZ20=4,G20,0) -> 0 | BE20: =IF(AZ20=5,G20,0) -> 0 | CA20: 1 | CB20: 1
C21: Položka je určena pro montáž litinových tvarovek na potrubí litinovém tlakovém přírubovém, jedoosých, ve štole, v uzavřeném kanálu, nebo v objektech. | L21: Položka je určena pro montáž litinových tvarovek na potrubí litinovém tlakovém přírubovém, jedoosých, ve štole, v uzavřeném kanálu, nebo v objektech. | O21: 3
C22: Redukční šachta u čp.144: | E22: 0 | M22: Redukční šachta u čp.144:
C23: FFR DN80/50:2 | E23: 2 | M23: FFR DN80/50:2
C24: XG DN50/2":1 | E24: 1 | M24: XG DN50/2":1
C25: FF DN50/100:1 | E25: 1 | M25: FF DN50/100:1
A26: 5 | B26: 891213431R00 | C26: Montáž ventilů regulačních v objektech DN 50 včetně nerezových spoj. prvků a obandážování spoje | D26: kus | E26: 1 | G26: =E26*F26 -> 0 | H26: 0.00047 | I26: =E26*H26 -> 0.00047 | J26: 0 | K26: =E26*J26 -> 0 | O26: 2 | AA26: 1 | AB26: 1 | AC26: 1 | AZ26: 1 | BA26: =IF(AZ26=1,G26,0) -> 0 | BB26: =IF(AZ26=2,G26,0) -> 0 | BC26: =IF(AZ26=3,G26,0) -> 0 | BD26: =IF(AZ26=4,G26,0) -> 0 | BE26: =IF(AZ26=5,G26,0) -> 0 | CA26: 1 | CB26: 1
C27: Položka je určena pro montáž ventilů regulačních v objektech. | L27: Položka je určena pro montáž ventilů regulačních v objektech. | O27: 3
C28: Součástí položky je i dodávka nerezových spojovacích prvků (šrouby, podložky, matky) a kompletního obandážování spojů. | L28: Součástí položky je i dodávka nerezových spojovacích prvků (šrouby, podložky, matky) a kompletního obandážování spojů. | O28: 3
C29: Redukční šachta u čp.144: | E29: 0 | M29: Redukční šachta u čp.144:
C30: Regulátor tlaku DN50:1 | E30: 1 | M30: Regulátor tlaku DN50:1
A31: 6 | B31: 891214121R00 | C31: Montáž kompenzátorů, montážních vložek DN 50 včetně nerezových spoj. prvků a obandážování spoje | D31: kus | E31: 1 | G31: =E31*F31 -> 0 | H31: 0.00021 | I31: =E31*H31 -> 0.00021 | J31: 0 | K31: =E31*J31 -> 0 | O31: 2 | AA31: 1 | AB31: 1 | AC31: 1 | AZ31: 1 | BA31: =IF(AZ31=1,G31,0) -> 0 | BB31: =IF(AZ31=2,G31,0) -> 0 | BC31: =IF(AZ31=3,G31,0) -> 0 | BD31: =IF(AZ31=4,G31,0) -> 0 | BE31: =IF(AZ31=5,G31,0) -> 0 | CA31: 1 | CB31: 1
C32: Položka je určena pro montáž kompenzátorů ucpávkových a gumových nebo montážních vložek na potrubí. | L32: Položka je určena pro montáž kompenzátorů ucpávkových a gumových nebo montážních vložek na potrubí. | O32: 3
C33: Součástí položky je i dodávka nerezových spojovacích prvků (šrouby, podložky, matky) a kompletního obandážování spojů. | L33: Součástí položky je i dodávka nerezových spojovacích prvků (šrouby, podložky, matky) a kompletního obandážování spojů. | O33: 3
C34: Redukční šachta u čp.144: | E34: 0 | M34: Redukční šachta u čp.144:
C35: Montážní vložka DN50:1 | E35: 1 | M35: Montážní vložka DN50:1
A36: 7 | B36: 891215321R00 | C36: Montáž zpětných klapek a filtrů DN 50 včetně nerezových spoj. prvků a obandážování spoje | D36: kus | E36: 1 | G36: =E36*F36 -> 0 | H36: 0.00021 | I36: =E36*H36 -> 0.00021 | J36: 0 | K36: =E36*J36 -> 0 | O36: 2 | AA36: 1 | AB36: 1 | AC36: 1 | AZ36: 1 | BA36: =IF(AZ36=1,G36,0) -> 0 | BB36: =IF(AZ36=2,G36,0) -> 0 | BC36: =IF(AZ36=3,G36,0) -> 0 | BD36: =IF(AZ36=4,G36,0) -> 0 | BE36: =IF(AZ36=5,G36,0) -> 0 | CA36: 1 | CB36: 1
C37: Položka je určena pro montáž zpětných klapek nebo filtrů na potrubí. | L37: Položka je určena pro montáž zpětných klapek nebo filtrů na potrubí. | O37: 3
C38: Součástí položky je i dodávka nerezových spojovacích prvků (šrouby, podložky, matky) a kompletního obandážování spojů. | L38: Součástí položky je i dodávka nerezových spojovacích prvků (šrouby, podložky, matky) a kompletního obandážování spojů. | O38: 3
C39: Redukční šachta u čp.144: | E39: 0 | M39: Redukční šachta u čp.144:
C40: Lapač nečistot (filtr) DN50:1 | E40: 1 | M40: Lapač nečistot (filtr) DN50:1
A41: 8 | B41: 891241221R00 | C41: Montáž vodovod. šoupátek šacht. kolečko DN 80 včetně nerezových spoj. prvků a obandážování spoje | D41: kus | E41: 2 | G41: =E41*F41 -> 0 | H41: 0.00022 | I41: =E41*H41 -> 0.00044 | J41: 0 | K41: =E41*J41 -> 0 | O41: 2 | AA41: 1 | AB41: 1 | AC41: 1 | AZ41: 1 | BA41: =IF(AZ41=1,G41,0) -> 0 | BB41: =IF(AZ41=2,G41,0) -> 0 | BC41: =IF(AZ41=3,G41,0) -> 0 | BD41: =IF(AZ41=4,G41,0) -> 0 | BE41: =IF(AZ41=5,G41,0) -> 0 | CA41: 1 | CB41: 1
C42: Položka je určena pro montáž vodovodních šoupátek v šachtách s ručním kolečkem. | L42: Položka je určena pro montáž vodovodních šoupátek v šachtách s ručním kolečkem. | O42: 3
C43: Součástí položky je i dodávka nerezových spojovacích prvků (šrouby, podložky, matky) a kompletního obandážování spojů. | L43: Součástí položky je i dodávka nerezových spojovacích prvků (šrouby, podložky, matky) a kompletního obandážování spojů. | O43: 3
C44: Redukční šachta u čp.144: | E44: 0 | M44: Redukční šachta u čp.144:
C45: Šoupě DN80:2 | E45: 2 | M45: Šoupě DN80:2
A46: 9 | B46: 892271111RRX | C46: Tlaková zkouška vodovodního potrubí DN 125 včetně zajištění konců potrubí | D46: soubor | E46: 1 | G46: =E46*F46 -> 0 | H46: 0 | I46: =E46*H46 -> 0 | J46: 0 | K46: =E46*J46 -> 0 | O46: 2 | AA46: 1 | AB46: 1 | AC46: 1 | AZ46: 1 | BA46: =IF(AZ46=1,G46,0) -> 0 | BB46: =IF(AZ46=2,G46,0) -> 0 | BC46: =IF(AZ46=3,G46,0) -> 0 | BD46: =IF(AZ46=4,G46,0) -> 0 | BE46: =IF(AZ46=5,G46,0) -> 0 | CA46: 1 | CB46: 1
C47: V položce jsou započteny náklady na přísun, montáž, demontáž a odsun zkoušecího čerpadla, napuštění tlakovou vodou a dodání vody pro tlakovou zkoušku. | L47: V položce jsou započteny náklady na přísun, montáž, demontáž a odsun zkoušecího čerpadla, napuštění tlakovou vodou a dodání vody pro tlakovou zkoušku. | O47: 3
A48: 10 | B48: 892273111RRX | C48: Desinfekce vodovodního potrubí DN 125 | D48: soubor | E48: 1 | G48: =E48*F48 -> 0 | H48: 0 | I48: =E48*H48 -> 0 | J48: 0 | K48: =E48*J48 -> 0 | O48: 2 | AA48: 1 | AB48: 1 | AC48: 1 | AZ48: 1 | BA48: =IF(AZ48=1,G48,0) -> 0 | BB48: =IF(AZ48=2,G48,0) -> 0 | BC48: =IF(AZ48=3,G48,0) -> 0 | BD48: =IF(AZ48=4,G48,0) -> 0 | BE48: =IF(AZ48=5,G48,0) -> 0 | CA48: 1 | CB48: 1
C49: V položce jsou zakalkulovány náklady na napuštění a vypuštění vody, dodání vody a desinfekčního prostředku a na bakteriologický rozbor vody. | L49: V položce jsou zakalkulovány náklady na napuštění a vypuštění vody, dodání vody a desinfekčního prostředku a na bakteriologický rozbor vody. | O49: 3
A50: 11 | B50: 42201500.03.R | C50: Regulátor tlaku HAWIDO DN 50 č. 1500 | D50: kus | E50: 1 | G50: =E50*F50 -> 0 | H50: 0.0113 | I50: =E50*H50 -> 0.0113 | K50: =E50*J50 -> 0 | O50: 2 | AA50: 3 | AB50: 1 | AC50: 42201500.03.R | AZ50: 1 | BA50: =IF(AZ50=1,G50,0) -> 0 | BB50: =IF(AZ50=2,G50,0) -> 0 | BC50: =IF(AZ50=3,G50,0) -> 0 | BD50: =IF(AZ50=4,G50,0) -> 0 | BE50: =IF(AZ50=5,G50,0) -> 0 | CA50: 3 | CB50: 1
C51: Nastavení tlaku dle projektové dokumentace. | L51: Nastavení tlaku dle projektové dokumentace. | O51: 3
C52: Redukční šachta u čp.144: | E52: 0 | M52: Redukční šachta u čp.144:
C53: Regulátor tlaku DN50:1 | E53: 1 | M53: Regulátor tlaku DN50:1
A54: 12 | B54: 42207800.01.R | C54: Ruční kolo pro šoupátko DN 80 | D54: kus | E54: 2 | G54: =E54*F54 -> 0 | H54: 0.0062 | I54: =E54*H54 -> 0.0124 | K54: =E54*J54 -> 0 | O54: 2 | AA54: 3 | AB54: 1 | AC54: 42207800.01.R | AZ54: 1 | BA54: =IF(AZ54=1,G54,0) -> 0 | BB54: =IF(AZ54=2,G54,0) -> 0 | BC54: =IF(AZ54=3,G54,0) -> 0 | BD54: =IF(AZ54=4,G54,0) -> 0 | BE54: =IF(AZ54=5,G54,0) -> 0 | CA54: 3 | CB54: 1
C55: Ruční kolo uzavírací pro šoupátka z šsdé litiny GG 250 s epoxidovou ochrannou vrstvou. | L55: Ruční kolo uzavírací pro šoupátka z šsdé litiny GG 250 s epoxidovou ochrannou vrstvou. | O55: 3
C56: Pro Š DN65-80. | L56: Pro Š DN65-80. | O56: 3
C57: Redukční šachta u čp.144: | E57: 0 | M57: Redukční šachta u čp.144:
C58: Pro Šoupě DN80:2 | E58: 2 | M58: Pro Šoupě DN80:2
A59: 13 | B59: 42208011.02.R | C59: Tvarovka VARIO + svorníky DN50 (L=150-207) č. 8010 | D59: kus | E59: 1 | G59: =E59*F59 -> 0 | H59: 0.01008 | I59: =E59*H59 -> 0.01008 | K59: =E59*J59 -> 0 | O59: 2 | AA59: 3 | AB59: 1 | AC59: 42208011.02.R | AZ59: 1 | BA59: =IF(AZ59=1,G59,0) -> 0 | BB59: =IF(AZ59=2,G59,0) -> 0 | BC59: =IF(AZ59=3,G59,0) -> 0 | BD59: =IF(AZ59=4,G59,0) -> 0 | BE59: =IF(AZ59=5,G59,0) -> 0 | CA59: 3 | CB59: 1
O60: 3
C61: Redukční šachta u čp.144: | E61: 0 | M61: Redukční šachta u čp.144:
C62: Montážní vložka DN50:1 | E62: 1 | M62: Montážní vložka DN50:1
A63: 14 | B63: 42209910.01.R | C63: Lapač nečistot DN 50 č. 9910 | D63: kus | E63: 1 | G63: =E63*F63 -> 0 | H63: 0.0028 | I63: =E63*H63 -> 0.0028 | K63: =E63*J63 -> 0 | O63: 2 | AA63: 3 | AB63: 1 | AC63: 42209910.01.R | AZ63: 1 | BA63: =IF(AZ63=1,G63,0) -> 0 | BB63: =IF(AZ63=2,G63,0) -> 0 | BC63: =IF(AZ63=3,G63,0) -> 0 | BD63: =IF(AZ63=4,G63,0) -> 0 | BE63: =IF(AZ63=5,G63,0) -> 0 | CA63: 3 | CB63: 1
C64: Redukční šachta u čp.144: | E64: 0 | M64: Redukční šachta u čp.144:
C65: Lapač nečistot (filtr) DN50:1 | E65: 1 | M65: Lapač nečistot (filtr) DN50:1
A66: 15 | B66: 42228310.R3 | C66: Šoupátko 4000E3 DN 80 přírubové, voda PN16 | D66: kus | E66: 2 | G66: =E66*F66 -> 0 | H66: 0.0165 | I66: =E66*H66 -> 0.033 | K66: =E66*J66 -> 0 | O66: 2 | AA66: 3 | AB66: 1 | AC66: 42228310.R3 | AZ66: 1 | BA66: =IF(AZ66=1,G66,0) -> 0 | BB66: =IF(AZ66=2,G66,0) -> 0 | BC66: =IF(AZ66=3,G66,0) -> 0 | BD66: =IF(AZ66=4,G66,0) -> 0 | BE66: =IF(AZ66=5,G66,0) -> 0 | CA66: 3 | CB66: 1
C67: Šoupátko přírubové krkové - měkcetěsnící klínové šoupátko s hladkým a volným průtokovým kanálem | L67: Šoupátko přírubové krkové - měkcetěsnící klínové šoupátko s hladkým a volným průtokovým kanálem | O67: 3
C68: č. 4000E3 | L68: č. 4000E3 | O68: 3
C69: PN 16 | L69: PN 16 | O69: 3
C70: DN 80 | L70: DN 80 | O70: 3
C71: těleso a víko: tvárná litina GGG 400 - DIN 1693 | L71: těleso a víko: tvárná litina GGG 400 - DIN 1693 | O71: 3
C72: medium: pitná voda, neagresivní odpadní voda | L72: medium: pitná voda, neagresivní odpadní voda | O72: 3
C73: Redukční šachta u čp.144: | E73: 0 | M73: Redukční šachta u čp.144:
C74: Šoupě DN80:2 | E74: 2 | M74: Šoupě DN80:2
A75: 16 | B75: 5525121010.R | C75: Trouba přír.litin. FF DN 50 mm | D75: kus | E75: 1 | G75: =E75*F75 -> 0 | H75: 0.0054 | I75: =E75*H75 -> 0.0054 | K75: =E75*J75 -> 0 | O75: 2 | AA75: 3 | AB75: 1 | AC75: 5525121010.R | AZ75: 1 | BA75: =IF(AZ75=1,G75,0) -> 0 | BB75: =IF(AZ75=2,G75,0) -> 0 | BC75: =IF(AZ75=3,G75,0) -> 0 | BD75: =IF(AZ75=4,G75,0) -> 0 | BE75: =IF(AZ75=5,G75,0) -> 0 | CA75: 3 | CB75: 1
C76: Redukční šachta u čp.144: | E76: 0 | M76: Redukční šachta u čp.144:
C77: FF DN50/100:1 | E77: 1 | M77: FF DN50/100:1
A78: 17 | B78: 55259811.R | C78: Přechod přír. FFR DN 80/ 50 | D78: kus | E78: 2 | G78: =E78*F78 -> 0 | H78: 0.0073 | I78: =E78*H78 -> 0.0146 | K78: =E78*J78 -> 0 | O78: 2 | AA78: 3 | AB78: 1 | AC78: 55259811.R | AZ78: 1 | BA78: =IF(AZ78=1,G78,0) -> 0 | BB78: =IF(AZ78=2,G78,0) -> 0 | BC78: =IF(AZ78=3,G78,0) -> 0 | BD78: =IF(AZ78=4,G78,0) -> 0 | BE78: =IF(AZ78=5,G78,0) -> 0 | CA78: 3 | CB78: 1
C79: Redukční šachta u čp.144: | E79: 0 | M79: Redukční šachta u čp.144:
C80: FFR DN80/50:2 | E80: 2 | M80: FFR DN80/50:2
A81: 18 | B81: 55260046.R | C81: Příruba zaslepovací XG DN 50 závit 2" | D81: kus | E81: 1 | G81: =E81*F81 -> 0 | H81: 0.0024 | I81: =E81*H81 -> 0.0024 | K81: =E81*J81 -> 0 | O81: 2 | AA81: 3 | AB81: 1 | AC81: 55260046.R | AZ81: 1 | BA81: =IF(AZ81=1,G81,0) -> 0 | BB81: =IF(AZ81=2,G81,0) -> 0 | BC81: =IF(AZ81=3,G81,0) -> 0 | BD81: =IF(AZ81=4,G81,0) -> 0 | BE81: =IF(AZ81=5,G81,0) -> 0 | CA81: 3 | CB81: 1
C82: Redukční šachta u čp.144: | E82: 0 | M82: Redukční šachta u čp.144:
C83: XG DN50/2":1 | E83: 1 | M83: XG DN50/2":1
B84: Celkem za | C84: 8 Trubní vedení | G84: =SUM(G11:G83) -> 0 | I84: =SUM(I11:I83) -> 0.09751 | K84: =SUM(K11:K83) -> 0 | O84: 4 | BA84: =SUM(BA11:BA83) -> 0 | BB84: =SUM(BB11:BB83) -> 0 | BC84: =SUM(BC11:BC83) -> 0 | BD84: =SUM(BD11:BD83) -> 0 | BE84: =SUM(BE11:BE83) -> 0
A85: Díl: | B85: 99 | C85: Staveništní přesun hmot | O85: 1
A86: 19 | B86: 998273101R00 | C86: Přesun hmot, trubní vedení litinové, otevř. výkop | D86: t | E86: 0.09751 | G86: =E86*F86 -> 0 | H86: 0 | I86: =E86*H86 -> 0 | K86: =E86*J86 -> 0 | O86: 2 | AA86: 7 | AB86: 1 | AC86: 2 | AZ86: 1 | BA86: =IF(AZ86=1,G86,0) -> 0 | BB86: =IF(AZ86=2,G86,0) -> 0 | BC86: =IF(AZ86=3,G86,0) -> 0 | BD86: =IF(AZ86=4,G86,0) -> 0 | BE86: =IF(AZ86=5,G86,0) -> 0 | CA86: 7 | CB86: 1
B87: Celkem za | C87: 99 Staveništní přesun hmot | G87: =SUM(G85:G86) -> 0 | I87: =SUM(I85:I86) -> 0 | K87: =SUM(K85:K86) -> 0 | O87: 4 | BA87: =SUM(BA85:BA86) -> 0 | BB87: =SUM(BB85:BB86) -> 0 | BC87: =SUM(BC85:BC86) -> 0 | BD87: =SUM(BD85:BD86) -> 0 | BE87: =SUM(BE85:BE86) -> 0

Sheet 005 3392005 KL
A1: POLOŽKOVÝ ROZPOČET
A2: Rozpočet | C2: 3392/005 | D2: Chuchelna - propojení vodovodu | F2: JKSO | G2: 827.11
A4: Objekt | F4: SKP
A5: 005 | C5: Chuchelna - propojení vodovodu | F5: Měrná jednotka | G5: m
A6: Stavba | F6: Počet jednotek | G6: 0
A7: 3392 | C7: Chuchelna – optimalizace vodovodní soustavy | F7: Náklady na m.j. | G7: =IF(G6=0,,ROUND((F30+F32)/G6,1)) -> 0
A8: Projektant | C8: Radek Hnát - VAK PROJEKT | F8: Typ rozpočtu
A9: Zpracovatel projektu
A10: Objednatel | C10: Vodohospodářské sdružení Turnov
A11: Dodavatel | C11: . | F11: Zakázkové číslo
A12: Rozpočtoval | F12: Počet listů
A13: ROZPOČTOVÉ NÁKLADY
A14: Základní rozpočtové náklady
B15: HSV celkem | C15: ='005 3392005 Rek'!E12 -> 0
A16: Z | B16: PSV celkem | C16: ='005 3392005 Rek'!F12 -> 0
A17: R | B17: M práce celkem | C17: ='005 3392005 Rek'!H12 -> 0
A18: N | B18: M dodávky celkem | C18: ='005 3392005 Rek'!G12 -> 0
A19: ZRN celkem | C19: =SUM(C15:C18) -> 0
A21: HZS | C21: ='005 3392005 Rek'!I12 -> 0
A22: ZRN+HZS | C22: =C19+C21 -> 0
A23: ZRN+ost.náklady+HZS | C23: =C22+G23 -> 0
A24: Vypracoval | D24: Za zhotovitele | F24: Za objednatele
A25: Jméno : | D25: Jméno : | F25: Jméno :
A26: Datum : | D26: Datum : | F26: Datum :
A28: Podpis : | D28: Podpis: | F28: Podpis:
A30: Základ pro DPH | C30: 21 | D30: % | F30: =C23-F32 -> 0
A31: DPH | C31: =C30 -> 21 | D31: % | F31: =ROUND(PRODUCT(F30,C31/100),0) -> 0
A32: Základ pro DPH | C32: 0 | D32: % | F32: 0
A33: DPH | C33: =C32 -> 0 | D33: % | F33: =ROUND(PRODUCT(F32,C33/100),0) -> 0
A34: CENA ZA OBJEKT CELKEM | F34: =ROUND(SUM(F30:F33),0) -> 0
A36: Poznámka :

Sheet 005 3392005 Rek
A1: Stavba : | C1: 3392 Chuchelna – optimalizace vodovodní soustavy | G1: Rozpočet : | H1: 3392/005
A2: Objekt : | C2: 005 Chuchelna - propojení vodovodu | G2: Chuchelna - propojení vodovodu
A4: REKAPITULACE STAVEBNÍCH DÍLŮ
B6: Stavební díl | E6: HSV | F6: PSV | G6: Dodávka | H6: Montáž | I6: HZS
A7: ='005 3392005 Pol'!B7 -> 1 | B7: ='005 3392005 Pol'!C7 -> Zemní práce | E7: ='005 3392005 Pol'!BA214 -> 0 | F7: ='005 3392005 Pol'!BB214 -> 0 | G7: ='005 3392005 Pol'!BC214 -> 0 | H7: ='005 3392005 Pol'!BD214 -> 0 | I7: ='005 3392005 Pol'!BE214 -> 0
A8: ='005 3392005 Pol'!B215 -> 45 | B8: ='005 3392005 Pol'!C215 -> Podkladní a vedlejší konstrukce | E8: ='005 3392005 Pol'!BA228 -> 0 | F8: ='005 3392005 Pol'!BB228 -> 0 | G8: ='005 3392005 Pol'!BC228 -> 0 | H8: ='005 3392005 Pol'!BD228 -> 0 | I8: ='005 3392005 Pol'!BE228 -> 0
A9: ='005 3392005 Pol'!B229 -> 5 | B9: ='005 3392005 Pol'!C229 -> Komunikace | E9: ='005 3392005 Pol'!BA276 -> 0 | F9: ='005 3392005 Pol'!BB276 -> 0 | G9: ='005 3392005 Pol'!BC276 -> 0 | H9: ='005 3392005 Pol'!BD276 -> 0 | I9: ='005 3392005 Pol'!BE276 -> 0
A10: ='005 3392005 Pol'!B277 -> 8 | B10: ='005 3392005 Pol'!C277 -> Trubní vedení | E10: ='005 3392005 Pol'!BA612 -> 0 | F10: ='005 3392005 Pol'!BB612 -> 0 | G10: ='005 3392005 Pol'!BC612 -> 0 | H10: ='005 3392005 Pol'!BD612 -> 0 | I10: ='005 3392005 Pol'!BE612 -> 0
A11: ='005 3392005 Pol'!B613 -> 99 | B11: ='005 3392005 Pol'!C613 -> Staveništní přesun hmot | E11: ='005 3392005 Pol'!BA615 -> 0 | F11: ='005 3392005 Pol'!BB615 -> 0 | G11: ='005 3392005 Pol'!BC615 -> 0 | H11: ='005 3392005 Pol'!BD615 -> 0 | I11: ='005 3392005 Pol'!BE615 -> 0
B12: CELKEM OBJEKT | E12: =SUM(E7:E11) -> 0 | F12: =SUM(F7:F11) -> 0 | G12: =SUM(G7:G11) -> 0 | H12: =SUM(H7:H11) -> 0 | I12: =SUM(I7:I11) -> 0

Sheet 005 3392005 Pol
A1: Položkový rozpočet
A3: Stavba : | C3: 3392 Chuchelna – optimalizace vodovodní soustavy | E3: Rozpočet: | F3: ='005 3392005 Rek'!H1 -> 3392/005
A4: Objekt : | C4: 005 Chuchelna - propojení vodovodu | E4: ='005 3392005 Rek'!G2 -> Chuchelna - propojení vodovodu
A6: P.č. | B6: Číslo položky | C6: Název položky | D6: MJ | E6: množství | F6: cena / MJ | G6: celkem (Kč) | H6: Jednotková hmotnost | I6: Celková hmotnost | J6: Jednotková dem.hmot. | K6: Celková dem.hmot.
A7: Díl: | B7: 1 | C7: Zemní práce | O7: 1
A8: 1 | B8: 113107530R00 | C8: Odstranění podkladu pl. 50 m2,kam.drcené tl.30 cm | D8: m2 | E8: 30.16 | G8: =E8*F8 -> 0 | H8: 0 | I8: =E8*H8 -> 0 | J8: -0.66 | K8: =E8*J8 -> -19.9056 | O8: 2 | AA8: 1 | AB8: 1 | AC8: 1 | AZ8: 1 | BA8: =IF(AZ8=1,G8,0) -> 0 | BB8: =IF(AZ8=2,G8,0) -> 0 | BC8: =IF(AZ8=3,G8,0) -> 0 | BD8: =IF(AZ8=4,G8,0) -> 0 | BE8: =IF(AZ8=5,G8,0) -> 0 | CA8: 1 | CB8: 1
C9: Vodovod - Řad 1 PE D 110x10,0 mm : | E9: 0 | M9: Vodovod - Řad 1 PE D 110x10,0 mm :
C10: km 0,000.0 - 0,009.7:9,70*0,80 | E10: 7.76 | M10: km 0,000.0 - 0,009.7:9,70*0,80
C11: km 0,027.0 - 0,038 (krajnice):11,00*0,80 | E11: 8.8 | M11: km 0,027.0 - 0,038 (krajnice):11,00*0,80
C12: km 0,038.0 - 0,042.0:4,00*2,00 | E12: 8 | M12: km 0,038.0 - 0,042.0:4,00*2,00
C13: VP pro čp. 60 PE D 32x3,0 mm:7,00*0,80 | E13: 5.6 | M13: VP pro čp. 60 PE D 32x3,0 mm:7,00*0,80
A14: 2 | B14: 113107605R00 | C14: Odstranění podkladu nad 50 m2,kam.drcené tl.5 cm | D14: m2 | E14: 56.4 | G14: =E14*F14 -> 0 | H14: 0 | I14: =E14*H14 -> 0 | J14: -0.11 | K14: =E14*J14 -> -6.204 | O14: 2 | AA14: 1 | AB14: 1 | AC14: 1 | AZ14: 1 | BA14: =IF(AZ14=1,G14,0) -> 0 | BB14: =IF(AZ14=2,G14,0) -> 0 | BC14: =IF(AZ14=3,G14,0) -> 0 | BD14: =IF(AZ14=4,G14,0) -> 0 | BE14: =IF(AZ14=5,G14,0) -> 0 | CA14: 1 | CB14: 1
C15: Vodovod - Řad 1 PE D 110x10,0 mm : | E15: 0 | M15: Vodovod - Řad 1 PE D 110x10,0 mm :
C16: Místní soukromá komunikace (od mostku k silnici III. tř.):70,00 | E16: 70 | M16: Místní soukromá komunikace (od mostku k silnici III. tř.):70,00
C17: km 0,038.0 - 0,042.0:-4,00*2,00 | E17: -8 | M17: km 0,038.0 - 0,042.0:-4,00*2,00
C18: VP pro čp. 60 PE D 32x3,0 mm:-7,00*0,80 | E18: -5.6 | M18: VP pro čp. 60 PE D 32x3,0 mm:-7,00*0,80
A19: 3 | B19: 113108306R00 | C19: Odstranění asfaltové vrstvy pl.do 50 m2, tl. 6 cm | D19: m2 | E19: 26.04 | G19: =E19*F19 -> 0 | H19: 0 | I19: =E19*H19 -> 0 | J19: -0.132 | K19: =E19*J19 -> -3.43728 | O19: 2 | AA19: 1 | AB19: 1 | AC19: 1 | AZ19: 1 | BA19: =IF(AZ19=1,G19,0) -> 0 | BB19: =IF(AZ19=2,G19,0) -> 0 | BC19: =IF(AZ19=3,G19,0) -> 0 | BD19: =IF(AZ19=4,G19,0) -> 0 | BE19: =IF(AZ19=5,G19,0) -> 0 | CA19: 1 | CB19: 1
C20: Vodovod - Řad 1 PE D 110x10,0 mm : | E20: 0 | M20: Vodovod - Řad 1 PE D 110x10,0 mm :
C21: km 0,000.0 - 0,009.7:9,70*1,20 | E21: 11.64 | M21: km 0,000.0 - 0,009.7:9,70*1,20
C22: km 0,038.0 - 0,042.0:4,00*2,40 | E22: 9.6 | M22: km 0,038.0 - 0,042.0:4,00*2,40
C23: VP pro čp. 60 PE D 32x3,0 mm:4,00*1,20 | E23: 4.8 | M23: VP pro čp. 60 PE D 32x3,0 mm:4,00*1,20
A24: 4 | B24: 113108405R00 | C24: Odstranění asfaltové vrstvy pl.nad 50 m2, tl. 5 cm | D24: m2 | E24: 70 | G24: =E24*F24 -> 0 | H24: 0 | I24: =E24*H24 -> 0 | J24: -0.11 | K24: =E24*J24 -> -7.7 | O24: 2 | AA24: 1 | AB24: 1 | AC24: 1 | AZ24: 1 | BA24: =IF(AZ24=1,G24,0) -> 0 | BB24: =IF(AZ24=2,G24,0) -> 0 | BC24: =IF(AZ24=3,G24,0) -> 0 | BD24: =IF(AZ24=4,G24,0) -> 0 | BE24: =IF(AZ24=5,G24,0) -> 0 | CA24: 1 | CB24: 1
C25: Vodovod - Řad 1 PE D 110x10,0 mm : | E25: 0 | M25: Vodovod - Řad 1 PE D 110x10,0 mm :
C26: Místní soukromá komunikace (od mostku k silnici III. tř.):70,00 | E26: 70 | M26: Místní soukromá komunikace (od mostku k silnici III. tř.):70,00
A27: 5 | B27: 113109315R00 | C27: Odstranění podkladu pl.50 m2, bet.prostý tl.15 cm | D27: m2 | E27: 2.4 | G27: =E27*F27 -> 0 | H27: 0 | I27: =E27*H27 -> 0 | J27: -0.36 | K27: =E27*J27 -> -0.864 | O27: 2 | AA27: 1 | AB27: 1 | AC27: 1 | AZ27: 1 | BA27: =IF(AZ27=1,G27,0) -> 0 | BB27: =IF(AZ27=2,G27,0) -> 0 | BC27: =IF(AZ27=3,G27,0) -> 0 | BD27: =IF(AZ27=4,G27,0) -> 0 | BE27: =IF(AZ27=5,G27,0) -> 0 | CA27: 1 | CB27: 1
C28: Vodovod - Řad 1 PE D 110x10,0 mm : | E28: 0 | M28: Vodovod - Řad 1 PE D 110x10,0 mm :
C29: VP pro čp. 60 PE D 32x3,0 mm:3,00*0,80 | E29: 2.4 | M29: VP pro čp. 60 PE D 32x3,0 mm:3,00*0,80
A30: 6 | B30: 113151113R00 | C30: Fréz.živič.krytu pl.do 500 m2,pruh do 75 cm,tl.4cm | D30: m2 | E30: 66 | G30: =E30*F30 -> 0 | H30: 0 | I30: =E30*H30 -> 0 | J30: -0.088 | K30: =E30*J30 -> -5.808 | O30: 2 | AA30: 1 | AB30: 1 | AC30: 1 | AZ30: 1 | BA30: =IF(AZ30=1,G30,0) -> 0 | BB30: =IF(AZ30=2,G30,0) -> 0 | BC30: =IF(AZ30=3,G30,0) -> 0 | BD30: =IF(AZ30=4,G30,0) -> 0 | BE30: =IF(AZ30=5,G30,0) -> 0 | CA30: 1 | CB30: 1
C31: Vodovod - Řad 1 PE D 110x10,0 mm : | E31: 0 | M31: Vodovod - Řad 1 PE D 110x10,0 mm :
C32: Místní komunikace:66,00 | E32: 66 | M32: Místní komunikace:66,00
A33: 7 | B33: 115101201R00 | C33: Čerpání vody na výšku do 10 m, přítok do 500 l/min | D33: h | E33: 224 | G33: =E33*F33 -> 0 | H33: 0 | I33: =E33*H33 -> 0 | J33: 0 | K33: =E33*J33 -> 0 | O33: 2 | AA33: 1 | AB33: 0 | AC33: 0 | AZ33: 1 | BA33: =IF(AZ33=1,G33,0) -> 0 | BB33: =IF(AZ33=2,G33,0) -> 0 | BC33: =IF(AZ33=3,G33,0) -> 0 | BD33: =IF(AZ33=4,G33,0) -> 0 | BE33: =IF(AZ33=5,G33,0) -> 0 | CA33: 1 | CB33: 0
C34: Množství měrných jednotek je doba, po kterou je čerpadlo v provozu. Množství m.j. je uvedeno dle předpokladu, celková cena této práce se stanoví podle skutečnosti při provádění stavebních prací. | L34: Množství měrných jednotek je doba, po kterou je čerpadlo v provozu. Množství m.j. je uvedeno dle předpokladu, celková cena této práce se stanoví podle skutečnosti při provádění stavebních prací. | O34: 3
O35: 3
C36: Vodovod - Řad 1 PE D 110x10,0 mm km 0,000.0 - 0,120.0:200,00 | E36: 200 | M36: Vodovod - Řad 1 PE D 110x10,0 mm km 0,000.0 - 0,120.0:200,00
C37: VP pro čp. 60 PE D 32x3,0 mm:8,00 | E37: 8 | M37: VP pro čp. 60 PE D 32x3,0 mm:8,00
C38: Propojení Řadu TLT DN80 po odstranění AŠ:8,00 | E38: 8 | M38: Propojení Řadu TLT DN80 po odstranění AŠ:8,00
C39: Po odpojení VP pro čp. 60 na TLT DN80:8,00 | E39: 8 | M39: Po odpojení VP pro čp. 60 na TLT DN80:8,00
A40: 8 | B40: 121100002RAA | C40: Sejmutí ornice a uložení na deponii zpětný přesun, rozprostření v tl. 20 cm | D40: m3 | E40: 43.98 | G40: =E40*F40 -> 0 | H40: 0 | I40: =E40*H40 -> 0 | J40: 0 | K40: =E40*J40 -> 0 | O40: 2 | AA40: 1 | AB40: 1 | AC40: 1 | AZ40: 1 | BA40: =IF(AZ40=1,G40,0) -> 0 | BB40: =IF(AZ40=2,G40,0) -> 0 | BC40: =IF(AZ40=3,G40,0) -> 0 | BD40: =IF(AZ40=4,G40,0) -> 0 | BE40: =IF(AZ40=5,G40,0) -> 0 | CA40: 1 | CB40: 1
C41: Vodovod - Řad 1 PE D 110x10,0 mm : | E41: 0 | M41: Vodovod - Řad 1 PE D 110x10,0 mm :
C42: km 0,009.7 - 0,014.0:4,30*3,00*0,20 | E42: 2.58 | M42: km 0,009.7 - 0,014.0:4,30*3,00*0,20
C43: km 0,020.0 - 0,027.0:7,00*3,00*0,20 | E43: 4.2 | M43: km 0,020.0 - 0,027.0:7,00*3,00*0,20
C44: km 0,055.0 - 0,112.0:57,00*3,00*0,20 | E44: 34.2 | M44: km 0,055.0 - 0,112.0:57,00*3,00*0,20
C45: Propojení Řadu TLT DN80 po odstranění AŠ:3,00*3,00*0,20 | E45: 1.8 | M45: Propojení Řadu TLT DN80 po odstranění AŠ:3,00*3,00*0,20
C46: Po odpojení VP pro čp. 60 na TLT DN80:2,00*3,00*0,20 | E46: 1.2 | M46: Po odpojení VP pro čp. 60 na TLT DN80:2,00*3,00*0,20
A47: 9 | B47: 130001101RRX | C47: Příplatek za ztížené hloubení v blízkosti vedení | D47: m3 | E47: 56.8225 | G47: =E47*F47 -> 0 | H47: 0 | I47: =E47*H47 -> 0 | J47: 0 | K47: =E47*J47 -> 0 | O47: 2 | AA47: 1 | AB47: 1 | AC47: 1 | AZ47: 1 | BA47: =IF(AZ47=1,G47,0) -> 0 | BB47: =IF(AZ47=2,G47,0) -> 0 | BC47: =IF(AZ47=3,G47,0) -> 0 | BD47: =IF(AZ47=4,G47,0) -> 0 | BE47: =IF(AZ47=5,G47,0) -> 0 | CA47: 1 | CB47: 1
C48: Včetně případných nutných dokopávem a ručního výkopu podél sousedících inženýrských sítí včetně vyvěšení a zajištění sítí. | L48: Včetně případných nutných dokopávem a ručního výkopu podél sousedících inženýrských sítí včetně vyvěšení a zajištění sítí. | O48: 3
C49: Vodovod - Řad 1 PE D 110x10,0 mm : | E49: 0 | M49: Vodovod - Řad 1 PE D 110x10,0 mm :
C50: V hornině tř. 3 - 5 - 38%:149,5330*0,38 | E50: 56.8225 | M50: V hornině tř. 3 - 5 - 38%:149,5330*0,38
A51: 10 | B51: 132201211R00 | C51: Hloubení rýh š.do 200 cm hor.3 do 100 m3,STROJNĚ | D51: m3 | E51: 74.7665 | G51: =E51*F51 -> 0 | H51: 0 | I51: =E51*H51 -> 0 | J51: 0 | K51: =E51*J51 -> 0 | O51: 2 | AA51: 1 | AB51: 1 | AC51: 1 | AZ51: 1 | BA51: =IF(AZ51=1,G51,0) -> 0 | BB51: =IF(AZ51=2,G51,0) -> 0 | BC51: =IF(AZ51=3,G51,0) -> 0 | BD51: =IF(AZ51=4,G51,0) -> 0 | BE51: =IF(AZ51=5,G51,0) -> 0 | CA51: 1 | CB51: 1
C52: Položka obsahuje hloubení rýh traktorbagrem, naložení výkopku na dopravní prostředek pro svislé, nebo vodorovné přemístění, popř. přemístění výkopku do 3 m (po povrchu území), případné zajištění rypadel polštáři, udržování pracoviště a ochranu výkopiště proti stékání srážkové vody z okolního terénu i s jejím odvodněním, nebo odvedením, přesekání a odstranění kořenů ve výkopišti, odstranění napadávek, urovnání dna výkopu. | L52: Položka obsahuje hloubení rýh traktorbagrem, naložení výkopku na dopravní prostředek pro svislé, nebo vodorovné přemístění, popř. přemístění výkopku do 3 m (po povrchu území), případné zajištění rypadel polštáři, udržování pracoviště a ochranu výkopiště proti stékání srážkové vody z okolního terénu i s jejím odvodněním, nebo odvedením, přesekání a odstranění kořenů ve výkopišti, odstranění napadávek, urovnání dna výkopu. | O52: 3
C53: Vodovod - Řad 1 PE D 110x10,0 mm : | E53: 0 | M53: Vodovod - Řad 1 PE D 110x10,0 mm :
C54: Začátek provozního součtu | E54: 0 | M54: Začátek provozního součtu
C55: km 0,000.0 - 0,014.0:14,00*0,80*1,65 | E55: 18.48 | M55: km 0,000.0 - 0,014.0:14,00*0,80*1,65
C56: Startovací jáma:3,00*2,00*1,65 | E56: 9.9 | M56: Startovací jáma:3,00*2,00*1,65
C57: Prohloubení pro startovací jámu:3,00*2,00*0,30 | E57: 1.8 | M57: Prohloubení pro startovací jámu:3,00*2,00*0,30
C58: km 0,020.0 - 0,022.0:2,00*0,80*(2,42+1,65)/2 | E58: 3.256 | M58: km 0,020.0 - 0,022.0:2,00*0,80*(2,42+1,65)/2
C59: Rozšíření pro cílovou jámu:2,00*(2,00-0,80)*(2,42+1,65)/2 | E59: 4.884 | M59: Rozšíření pro cílovou jámu:2,00*(2,00-0,80)*(2,42+1,65)/2
C60: Prohloubení pro cílovou jámu:2,00*2,00*0,30 | E60: 1.2 | M60: Prohloubení pro cílovou jámu:2,00*2,00*0,30
C61: km 0,022.0 - 0,042.0:20,00*0,80*1,65 | E61: 26.4 | M61: km 0,022.0 - 0,042.0:20,00*0,80*1,65
C62: Rozšíření pro startovací jámu:4,00*(2,00-0,80)*1,65 | E62: 7.92 | M62: Rozšíření pro startovací jámu:4,00*(2,00-0,80)*1,65
C63: Prohloubení pro cílovou jámu:4,00*2,00*0,30 | E63: 2.4 | M63: Prohloubení pro cílovou jámu:4,00*2,00*0,30
C64: km 0,055.0 - 0,112.0:57,00*0,80*1,65 | E64: 75.24 | M64: km 0,055.0 - 0,112.0:57,00*0,80*1,65
C65: Rozšíření pro cílovou jámu:2,00*(2,00-0,80)*(1,65+1,65)/2 | E65: 3.96 | M65: Rozšíření pro cílovou jámu:2,00*(2,00-0,80)*(1,65+1,65)/2
C66: Prohloubení pro cílovou jámu:2,00*2,00*0,30 | E66: 1.2 | M66: Prohloubení pro cílovou jámu:2,00*2,00*0,30
C67: VP pro čp. 60 PE D 32x3,0 mm:7,00*0,80*1,65 | E67: 9.24 | M67: VP pro čp. 60 PE D 32x3,0 mm:7,00*0,80*1,65
C68: Odpočet objemu konstrukce komunikací a krajnic: | E68: 0 | M68: Odpočet objemu konstrukce komunikací a krajnic:
C69: Vodovod - Řad 1 PE D 110x10,0 mm : | E69: 0 | M69: Vodovod - Řad 1 PE D 110x10,0 mm :
C70: km 0,000.0 - 0,009.7:-9,70*0,80*0,40 | E70: -3.104 | M70: km 0,000.0 - 0,009.7:-9,70*0,80*0,40
C71: km 0,027.0 - 0,038 (krajnice):-11,00*0,80*0,25 | E71: -2.2 | M71: km 0,027.0 - 0,038 (krajnice):-11,00*0,80*0,25
C72: km 0,038.0 - 0,042.0:-4,00*2,00*0,40 | E72: -3.2 | M72: km 0,038.0 - 0,042.0:-4,00*2,00*0,40
C73: VP pro čp. 60 PE D 32x3,0 mm:-4,00*0,80*0,40 | E73: -1.28 | M73: VP pro čp. 60 PE D 32x3,0 mm:-4,00*0,80*0,40
C74: Propojení Řadu TLT DN80 po odstranění AŠ:3,00*1,50*2,00 | E74: 9 | M74: Propojení Řadu TLT DN80 po odstranění AŠ:3,00*1,50*2,00
C75: Po odpojení VP pro čp. 60 na TLT DN80:2,00*0,80*2,00 | E75: 3.2 | M75: Po odpojení VP pro čp. 60 na TLT DN80:2,00*0,80*2,00
C76: Odpočet objemu stávající AŠ:-4,4550 | E76: -4.455 | M76: Odpočet objemu stávající AŠ:-4,4550
C77: Odpočet objemu ornice: | E77: 0 | M77: Odpočet objemu ornice:
C78: Vodovod - Řad 1 PE D 110x10,0 mm : | E78: 0 | M78: Vodovod - Řad 1 PE D 110x10,0 mm :
C79: km 0,009.7 - 0,014.0:-(4,30*0,80*0,20+3,00*2,00*0,20) | E79: -1.888 | M79: km 0,009.7 - 0,014.0:-(4,30*0,80*0,20+3,00*2,00*0,20)
C80: km 0,020.0 - 0,027.0:-7,00*0,80*0,20 | E80: -1.12 | M80: km 0,020.0 - 0,027.0:-7,00*0,80*0,20
C81: km 0,055.0 - 0,112.0:-(57,00*0,80*0,20+2,00*(2,00-0,80)*0,20) | E81: -9.6 | M81: km 0,055.0 - 0,112.0:-(57,00*0,80*0,20+2,00*(2,00-0,80)*0,20)
C82: VP pro čp. 60 PE D 32x3,0 mm:-3,00*0,80*0,20 | E82: -0.48 | M82: VP pro čp. 60 PE D 32x3,0 mm:-3,00*0,80*0,20
C83: Propojení Řadu TLT DN80 po odstranění AŠ:-3,00*1,50*0,20 | E83: -0.9 | M83: Propojení Řadu TLT DN80 po odstranění AŠ:-3,00*1,50*0,20
C84: Po odpojení VP pro čp. 60 na TLT DN80:-2,00*0,80*0,20 | E84: -0.32 | M84: Po odpojení VP pro čp. 60 na TLT DN80:-2,00*0,80*0,20
C85: Konec provozního součtu | E85: 149.533 | M85: Konec provozního součtu
C86: V hornině tř. 3 - 50%:149,5330*0,5 | E86: 74.7665 | M86: V hornině tř. 3 - 50%:149,5330*0,5
A87: 11 | B87: 132201219R00 | C87: Přípl.za lepivost,hloubení rýh 200cm,hor.3,STROJNĚ | D87: m3 | E87: 74.7665 | G87: =E87*F87 -> 0 | H87: 0 | I87: =E87*H87 -> 0 | J87: 0 | K87: =E87*J87 -> 0 | O87: 2 | AA87: 1 | AB87: 1 | AC87: 1 | AZ87: 1 | BA87: =IF(AZ87=1,G87,0) -> 0 | BB87: =IF(AZ87=2,G87,0) -> 0 | BC87: =IF(AZ87=3,G87,0) -> 0 | BD87: =IF(AZ87=4,G87,0) -> 0 | BE87: =IF(AZ87=5,G87,0) -> 0 | CA87: 1 | CB87: 1
C88: Vodovod - Řad 1 PE D 110x10,0 mm : | E88: 0 | M88: Vodovod - Řad 1 PE D 110x10,0 mm :
C89: V hornině tř. 3 - 50%:149,5330*0,5 | E89: 74.7665 | M89: V hornině tř. 3 - 50%:149,5330*0,5
A90: 12 | B90: 132301211R00 | C90: Hloubení rýh š.do 200 cm hor.4 do 100 m3, STROJNĚ | D90: m3 | E90: 59.8132 | G90: =E90*F90 -> 0 | H90: 0 | I90: =E90*H90 -> 0 | J90: 0 | K90: =E90*J90 -> 0 | O90: 2 | AA90: 1 | AB90: 1 | AC90: 1 | AZ90: 1 | BA90: =IF(AZ90=1,G90,0) -> 0 | BB90: =IF(AZ90=2,G90,0) -> 0 | BC90: =IF(AZ90=3,G90,0) -> 0 | BD90: =IF(AZ90=4,G90,0) -> 0 | BE90: =IF(AZ90=5,G90,0) -> 0 | CA90: 1 | CB90: 1
C91: Položka obsahuje hloubení rýh traktorbagrem, naložení výkopku na dopravní prostředek pro svislé, nebo vodorovné přemístění, popř. přemístění výkopku do 3 m (po povrchu území), případné zajištění rypadel polštáři, udržování pracoviště a ochranu výkopiště proti stékání srážkové vody z okolního terénu i s jejím odvodněním, nebo odvedením, přesekání a odstranění kořenů ve výkopišti, odstranění napadávek, urovnání dna výkopu. | L91: Položka obsahuje hloubení rýh traktorbagrem, naložení výkopku na dopravní prostředek pro svislé, nebo vodorovné přemístění, popř. přemístění výkopku do 3 m (po povrchu území), případné zajištění rypadel polštáři, udržování pracoviště a ochranu výkopiště proti stékání srážkové vody z okolního terénu i s jejím odvodněním, nebo odvedením, přesekání a odstranění kořenů ve výkopišti, odstranění napadávek, urovnání dna výkopu. | O91: 3
C92: Vodovod - Řad 1 PE D 110x10,0 mm : | E92: 0 | M92: Vodovod - Řad 1 PE D 110x10,0 mm :
C93: V hornině tř. 4 - 40%:149,5330*0,4 | E93: 59.8132 | M93: V hornině tř. 4 - 40%:149,5330*0,4
A94: 13 | B94: 132301219R00 | C94: Přípl.za lepivost,hloubení rýh 200cm,hor.4,STROJNĚ | D94: m3 | E94: 59.8132 | G94: =E94*F94 -> 0 | H94: 0 | I94: =E94*H94 -> 0 | J94: 0 | K94: =E94*J94 -> 0 | O94: 2 | AA94: 1 | AB94: 1 | AC94: 1 | AZ94: 1 | BA94: =IF(AZ94=1,G94,0) -> 0 | BB94: =IF(AZ94=2,G94,0) -> 0 | BC94: =IF(AZ94=3,G94,0) -> 0 | BD94: =IF(AZ94=4,G94,0) -> 0 | BE94: =IF(AZ94=5,G94,0) -> 0 | CA94: 1 | CB94: 1
C95: Vodovod - Řad 1 PE D 110x10,0 mm : | E95: 0 | M95: Vodovod - Řad 1 PE D 110x10,0 mm :
C96: V hornině tř. 4 - 40%:149,5330*0,4 | E96: 59.8132 | M96: V hornině tř. 4 - 40%:149,5330*0,4
A97: 14 | B97: 132401211R00 | C97: Hloubení rýh šířky do 200 cm v hor.5, STROJNĚ | D97: m3 | E97: 14.9533 | G97: =E97*F97 -> 0 | H97: 0 | I97: =E97*H97 -> 0 | J97: 0 | K97: =E97*J97 -> 0 | O97: 2 | AA97: 1 | AB97: 1 | AC97: 1 | AZ97: 1 | BA97: =IF(AZ97=1,G97,0) -> 0 | BB97: =IF(AZ97=2,G97,0) -> 0 | BC97: =IF(AZ97=3,G97,0) -> 0 | BD97: =IF(AZ97=4,G97,0) -> 0 | BE97: =IF(AZ97=5,G97,0) -> 0 | CA97: 1 | CB97: 1
C98: Vodovod - Řad 1 PE D 110x10,0 mm : | E98: 0 | M98: Vodovod - Řad 1 PE D 110x10,0 mm :
C99: V hornině tř. 5 - 10%:149,5330*0,1 | E99: 14.9533 | M99: V hornině tř. 5 - 10%:149,5330*0,1
A100: 15 | B100: 141721103R00 | C100: Řízené protlačení a vtažení PE d 225 mm, hor.1 - 4 | D100: m | E100: 19 | G100: =E100*F100 -> 0 | H100: 0.00696 | I100: =E100*H100 -> 0.13224 | J100: 0 | K100: =E100*J100 -> 0 | O100: 2 | AA100: 1 | AB100: 1 | AC100: 1 | AZ100: 1 | BA100: =IF(AZ100=1,G100,0) -> 0 | BB100: =IF(AZ100=2,G100,0) -> 0 | BC100: =IF(AZ100=3,G100,0) -> 0 | BD100: =IF(AZ100=4,G100,0) -> 0 | BE100: =IF(AZ100=5,G100,0) -> 0 | CA100: 1 | CB100: 1
C101: Jedná se o bezvýkopovou technologii horizontálně řízeného vrtání a vtažení potrubí na principu rozplavování a rozrušování zeminy pomocí vysokotlaké směsi vody a bentonitu. | L101: Jedná se o bezvýkopovou technologii horizontálně řízeného vrtání a vtažení potrubí na principu rozplavování a rozrušování zeminy pomocí vysokotlaké směsi vody a bentonitu. | O101: 3
C102: V položce je započteno : - provedení pilotního vrtu, | L102: V položce je započteno : - provedení pilotního vrtu, | O102: 3
C103: - potřebné rozšíření vrtu, | L103: - potřebné rozšíření vrtu, | O103: 3
C104: - vtažení potrubí, | L104: - vtažení potrubí, | O104: 3
C105: - svařování vtahovaného potrubí. | L105: - svařování vtahovaného potrubí. | O105: 3
C106: V položce není započteno: - zemní práce nutné pro provedení prací, | L106: V položce není započteno: - zemní práce nutné pro provedení prací, | O106: 3
C107: - případné čerpání vody, | L107: - případné čerpání vody, | O107: 3
C108: - montáž vedení, slouží-li vtahovaná trubka jako ochranné potrubí, | L108: - montáž vedení, slouží-li vtahovaná trubka jako ochranné potrubí, | O108: 3
C109: - dodání vtahovaných trubek. | L109: - dodání vtahovaných trubek. | O109: 3
C110: Vodovod - Řad 1 PE D 110x10,0 mm: | E110: 0 | M110: Vodovod - Řad 1 PE D 110x10,0 mm:
C111: Řízený protlak km 0,014.0 - 0,020.0:6,00 | E111: 6 | M111: Řízený protlak km 0,014.0 - 0,020.0:6,00
C112: Řízený protlak km 0,042.0 - 0,055.0:13,00 | E112: 13 | M112: Řízený protlak km 0,042.0 - 0,055.0:13,00
A113: 16 | B113: 151101101R00 | C113: Pažení a rozepření stěn rýh - příložné - hl.do 2 m | D113: m2 | E113: 368.04 | G113: =E113*F113 -> 0 | H113: 0.00099 | I113: =E113*H113 -> 0.3643596 | J113: 0 | K113: =E113*J113 -> 0 | O113: 2 | AA113: 1 | AB113: 1 | AC113: 1 | AZ113: 1 | BA113: =IF(AZ113=1,G113,0) -> 0 | BB113: =IF(AZ113=2,G113,0) -> 0 | BC113: =IF(AZ113=3,G113,0) -> 0 | BD113: =IF(AZ113=4,G113,0) -> 0 | BE113: =IF(AZ113=5,G113,0) -> 0 | CA113: 1 | CB113: 1
C114: Vodovod - Řad 1 PE D 110x10,0 mm : | E114: 0 | M114: Vodovod - Řad 1 PE D 110x10,0 mm :
C115: km 0,000.0 - 0,014.0:14,00*1,65*2 | E115: 46.2 | M115: km 0,000.0 - 0,014.0:14,00*1,65*2
C116: Startovací jáma:3,00*1,65*2 | E116: 9.9 | M116: Startovací jáma:3,00*1,65*2
C117: Prohloubení pro startovací jámu:3,00*0,30*2 | E117: 1.8 | M117: Prohloubení pro startovací jámu:3,00*0,30*2
C118: km 0,020.0 - 0,022.0:2,00*(2,42+1,65)/2*2 | E118: 8.14 | M118: km 0,020.0 - 0,022.0:2,00*(2,42+1,65)/2*2
C119: Prohloubení pro cílovou jámu:2,00*0,30*2 | E119: 1.2 | M119: Prohloubení pro cílovou jámu:2,00*0,30*2
C120: km 0,022.0 - 0,042.0:20,00*1,65*2 | E120: 66 | M120: km 0,022.0 - 0,042.0:20,00*1,65*2
C121: Prohloubení pro cílovou jámu:4,00*0,30*2 | E121: 2.4 | M121: Prohloubení pro cílovou jámu:4,00*0,30*2
C122: km 0,055.0 - 0,112.0:57,00*1,65*2 | E122: 188.1 | M122: km 0,055.0 - 0,112.0:57,00*1,65*2
C123: Prohloubení pro cílovou jámu:2,00*0,30*2 | E123: 1.2 | M123: Prohloubení pro cílovou jámu:2,00*0,30*2
C124: VP pro čp. 60 PE D 32x3,0 mm:7,00*1,65*2 | E124: 23.1 | M124: VP pro čp. 60 PE D 32x3,0 mm:7,00*1,65*2
C125: Propojení Řadu TLT DN80 po odstranění AŠ:3,00*2,00*2 | E125: 12 | M125: Propojení Řadu TLT DN80 po odstranění AŠ:3,00*2,00*2
C126: Po odpojení VP pro čp. 60 na TLT DN80:2,00*2,00*2 | E126: 8 | M126: Po odpojení VP pro čp. 60 na TLT DN80:2,00*2,00*2
A127: 17 | B127: 151101111R00 | C127: Odstranění pažení stěn rýh - příložné - hl. do 2 m | D127: m2 | E127: 368.04 | G127: =E127*F127 -> 0 | H127: 0 | I127: =E127*H127 -> 0 | J127: 0 | K127: =E127*J127 -> 0 | O127: 2 | AA127: 1 | AB127: 1 | AC127: 1 | AZ127: 1 | BA127: =IF(AZ127=1,G127,0) -> 0 | BB127: =IF(AZ127=2,G127,0) -> 0 | BC127: =IF(AZ127=3,G127,0) -> 0 | BD127: =IF(AZ127=4,G127,0) -> 0 | BE127: =IF(AZ127=5,G127,0) -> 0 | CA127: 1 | CB127: 1
C128: Vodovod - Řad 1 PE D 110x10,0 mm : | E128: 0 | M128: Vodovod - Řad 1 PE D 110x10,0 mm :
C129: km 0,000.0 - 0,014.0:14,00*1,65*2 | E129: 46.2 | M129: km 0,000.0 - 0,014.0:14,00*1,65*2
C130: Startovací jáma:3,00*1,65*2 | E130: 9.9 | M130: Startovací jáma:3,00*1,65*2
C131: Prohloubení pro startovací jámu:3,00*0,30*2 | E131: 1.8 | M131: Prohloubení pro startovací jámu:3,00*0,30*2
C132: km 0,020.0 - 0,022.0:2,00*(2,42+1,65)/2*2 | E132: 8.14 | M132: km 0,020.0 - 0,022.0:2,00*(2,42+1,65)/2*2
C133: Prohloubení pro cílovou jámu:2,00*0,30*2 | E133: 1.2 | M133: Prohloubení pro cílovou jámu:2,00*0,30*2
C134: km 0,022.0 - 0,042.0:20,00*1,65*2 | E134: 66 | M134: km 0,022.0 - 0,042.0:20,00*1,65*2
C135: Prohloubení pro cílovou jámu:4,00*0,30*2 | E135: 2.4 | M135: Prohloubení pro cílovou jámu:4,00*0,30*2
C136: km 0,055.0 - 0,112.0:57,00*1,65*2 | E136: 188.1 | M136: km 0,055.0 - 0,112.0:57,00*1,65*2
C137: Prohloubení pro cílovou jámu:2,00*0,30*2 | E137: 1.2 | M137: Prohloubení pro cílovou jámu:2,00*0,30*2
C138: VP pro čp. 60 PE D 32x3,0 mm:7,00*1,65*2 | E138: 23.1 | M138: VP pro čp. 60 PE D 32x3,0 mm:7,00*1,65*2
C139: Propojení Řadu TLT DN80 po odstranění AŠ:3,00*2,00*2 | E139: 12 | M139: Propojení Řadu TLT DN80 po odstranění AŠ:3,00*2,00*2
C140: Po odpojení VP pro čp. 60 na TLT DN80:2,00*2,00*2 | E140: 8 | M140: Po odpojení VP pro čp. 60 na TLT DN80:2,00*2,00*2
A141: 18 | B141: 162701105RSZ | C141: Vodorovné přemístění výkopku z hor.1-7 na skládku zhotovitele | D141: m3 | E141: 71.0434 | G141: =E141*F141 -> 0 | H141: 0 | I141: =E141*H141 -> 0 | J141: 0 | K141: =E141*J141 -> 0 | O141: 2 | AA141: 1 | AB141: 1 | AC141: 1 | AZ141: 1 | BA141: =IF(AZ141=1,G141,0) -> 0 | BB141: =IF(AZ141=2,G141,0) -> 0 | BC141: =IF(AZ141=3,G141,0) -> 0 | BD141: =IF(AZ141=4,G141,0) -> 0 | BE141: =IF(AZ141=5,G141,0) -> 0 | CA141: 1 | CB141: 1
C142: Vodovod - Řad 1 PE D 110x10,0 mm : | E142: 0 | M142: Vodovod - Řad 1 PE D 110x10,0 mm :
C143: Výkopy: | E143: 0 | M143: Výkopy:
C144: V hornině tř. 3 - 5 :149,5330 | E144: 149.533 | M144: V hornině tř. 3 - 5 :149,5330
C145: Odpočet objemu zásypů zeminou:-78,4896 | E145: -78.4896 | M145: Odpočet objemu zásypů zeminou:-78,4896
A146: 19 | B146: 174101101R00 | C146: Zásyp jam, rýh, šachet se zhutněním | D146: m3 | E146: 30.172 | G146: =E146*F146 -> 0 | H146: 0 | I146: =E146*H146 -> 0 | J146: 0 | K146: =E146*J146 -> 0 | O146: 2 | AA146: 1 | AB146: 1 | AC146: 1 | AZ146: 1 | BA146: =IF(AZ146=1,G146,0) -> 0 | BB146: =IF(AZ146=2,G146,0) -> 0 | BC146: =IF(AZ146=3,G146,0) -> 0 | BD146: =IF(AZ146=4,G146,0) -> 0 | BE146: =IF(AZ146=5,G146,0) -> 0 | CA146: 1 | CB146: 1
C147: Položka obsahuje strojní přemístění materiálu pro zásyp ze vzdálenosti do 10 m od okraje zásypu. | L147: Položka obsahuje strojní přemístění materiálu pro zásyp ze vzdálenosti do 10 m od okraje zásypu. | O147: 3
O148: 3
C149: Vodovod - Řad 1 PE D 110x10,0 mm : | E149: 0 | M149: Vodovod - Řad 1 PE D 110x10,0 mm :
C150: Zásypy ŠD fr. - 0-63 mm:30,1720 | E150: 30.172 | M150: Zásypy ŠD fr. - 0-63 mm:30,1720
C151: Začátek provozního součtu | E151: 0 | M151: Začátek provozního součtu
C152: km 0,000.0 - 0,009.7:9,70*0,80*1,65 | E152: 12.804 | M152: km 0,000.0 - 0,009.7:9,70*0,80*1,65
C153: km 0,022.0 - 0,042.0 (krajnice + komunikace):20,00*0,80*1,65 | E153: 26.4 | M153: km 0,022.0 - 0,042.0 (krajnice + komunikace):20,00*0,80*1,65
C154: Rozšíření pro startovací jámu:4,00*(2,00-0,80)*1,65 | E154: 7.92 | M154: Rozšíření pro startovací jámu:4,00*(2,00-0,80)*1,65
C155: Prohloubení pro cílovou jámu:4,00*2,00*0,30 | E155: 2.4 | M155: Prohloubení pro cílovou jámu:4,00*2,00*0,30
C156: VP pro čp. 60 PE D 32x3,0 mm:4,00*0,80*1,65 | E156: 5.28 | M156: VP pro čp. 60 PE D 32x3,0 mm:4,00*0,80*1,65
C157: Odpočet objemu konstrukce komunikací a krajnic: | E157: 0 | M157: Odpočet objemu konstrukce komunikací a krajnic:
C158: Vodovod - Řad 1 PE D 110x10,0 mm : | E158: 0 | M158: Vodovod - Řad 1 PE D 110x10,0 mm :
C159: km 0,000.0 - 0,009.7:-9,70*0,80*0,40 | E159: -3.104 | M159: km 0,000.0 - 0,009.7:-9,70*0,80*0,40
C160: km 0,027.0 - 0,038 (krajnice):-11,00*0,80*0,25 | E160: -2.2 | M160: km 0,027.0 - 0,038 (krajnice):-11,00*0,80*0,25
C161: km 0,038.0 - 0,042.0:-4,00*2,00*0,40 | E161: -3.2 | M161: km 0,038.0 - 0,042.0:-4,00*2,00*0,40
C162: VP pro čp. 60 PE D 32x3,0 mm:-4,00*0,80*0,40 | E162: -1.28 | M162: VP pro čp. 60 PE D 32x3,0 mm:-4,00*0,80*0,40
C163: Odpočet lože, potrubí a obsypů: | E163: 0 | M163: Odpočet lože, potrubí a obsypů:
C164: Vodovod - Řad PE D 110x10,0 mm: | E164: 0 | M164: Vodovod - Řad PE D 110x10,0 mm:
C165: km 0,000.0 - 0,009.7:-9,70*0,80*(0,15+0,11+0,30) | E165: -4.3456 | M165: km 0,000.0 - 0,009.7:-9,70*0,80*(0,15+0,11+0,30)
C166: km 0,022.0 - 0,042.0:-20,00*0,80*(0,15+0,11+0,30) | E166: -8.96 | M166: km 0,022.0 - 0,042.0:-20,00*0,80*(0,15+0,11+0,30)
C167: VP pro čp. 60 PE D 32x3,0 mm:-4,00*0,80*(0,15+0,032+0,30) | E167: -1.5424 | M167: VP pro čp. 60 PE D 32x3,0 mm:-4,00*0,80*(0,15+0,032+0,30)
C168: Konec provozního součtu | E168: 30.172 | M168: Konec provozního součtu
A169: 20 | B169: 175101101R00 | C169: Obsyp potrubí bez prohození sypaniny | D169: m3 | E169: 36.4666 | G169: =E169*F169 -> 0 | H169: 0 | I169: =E169*H169 -> 0 | J169: 0 | K169: =E169*J169 -> 0 | O169: 2 | AA169: 1 | AB169: 1 | AC169: 1 | AZ169: 1 | BA169: =IF(AZ169=1,G169,0) -> 0 | BB169: =IF(AZ169=2,G169,0) -> 0 | BC169: =IF(AZ169=3,G169,0) -> 0 | BD169: =IF(AZ169=4,G169,0) -> 0 | BE169: =IF(AZ169=5,G169,0) -> 0 | CA169: 1 | CB169: 1
C170: Vodovod - Řad 1 PE D 110x10,0 mm km 0,000.0 - 0,120.0:(120,00-6,00-13,00)*(0,80*(0,11+0,30)-0,055^2*Pi) | E170: 32.1682 | M170: Vodovod - Řad 1 PE D 110x10,0 mm km 0,000.0 - 0,120.0:(120,00-6,00-13,00)*(0,80*(0,11+0,30)-0,055^2*Pi)
C171: VP pro čp. 60 PE D 32x3,0 mm:7,00*(0,80*(0,032+0,30)-0,016^2*Pi) | E171: 1.8536 | M171: VP pro čp. 60 PE D 32x3,0 mm:7,00*(0,80*(0,032+0,30)-0,016^2*Pi)
C172: Propojení Řadu TLT DN80 po odstranění AŠ:3,00*(1,50*(0,08+0,30)-0,04^2*Pi) | E172: 1.6949 | M172: Propojení Řadu TLT DN80 po odstranění AŠ:3,00*(1,50*(0,08+0,30)-0,04^2*Pi)
C173: Po odpojení VP pro čp. 60 na TLT DN80:2,00*(1,00*(0,08+0,30)-0,04^2*Pi) | E173: 0.7499 | M173: Po odpojení VP pro čp. 60 na TLT DN80:2,00*(1,00*(0,08+0,30)-0,04^2*Pi)
A174: 21 | B174: 199000002R00 | C174: Poplatek za skládku horniny 1- 7 č. dle katal. odpadů 17 05 04 | D174: m3 | E174: 71.0434 | G174: =E174*F174 -> 0 | H174: 0 | I174: =E174*H174 -> 0 | J174: 0 | K174: =E174*J174 -> 0 | O174: 2 | AA174: 1 | AB174: 1 | AC174: 1 | AZ174: 1 | BA174: =IF(AZ174=1,G174,0) -> 0 | BB174: =IF(AZ174=2,G174,0) -> 0 | BC174: =IF(AZ174=3,G174,0) -> 0 | BD174: =IF(AZ174=4,G174,0) -> 0 | BE174: =IF(AZ174=5,G174,0) -> 0 | CA174: 1 | CB174: 1
C175: Vodovod - Řad 1 PE D 110x10,0 mm : | E175: 0 | M175: Vodovod - Řad 1 PE D 110x10,0 mm :
C176: Výkopy: | E176: 0 | M176: Výkopy:
C177: V hornině tř. 3 - 5 :149,5330 | E177: 149.533 | M177: V hornině tř. 3 - 5 :149,5330
C178: Odpočet objemu zásypů zeminou:-78,4896 | E178: -78.4896 | M178: Odpočet objemu zásypů zeminou:-78,4896
A179: 22 | B179: 230191039R00 | C179: Uložení chráničky ve výkopu PE 225x20,5 mm | D179: m | E179: 6.6 | G179: =E179*F179 -> 0 | H179: 0 | I179: =E179*H179 -> 0 | J179: 0 | K179: =E179*J179 -> 0 | O179: 2 | AA179: 1 | AB179: 9 | AC179: 9 | AZ179: 1 | BA179: =IF(AZ179=1,G179,0) -> 0 | BB179: =IF(AZ179=2,G179,0) -> 0 | BC179: =IF(AZ179=3,G179,0) -> 0 | BD179: =IF(AZ179=4,G179,0) -> 0 | BE179: =IF(AZ179=5,G179,0) -> 0 | CA179: 1 | CB179: 9
C180: Vodovod - Řad 1 PE D 110x10,0 mm: | E180: 0 | M180: Vodovod - Řad 1 PE D 110x10,0 mm:
C181: Chránička km 0,055.0 - 0,061.0:6,00*1,10 | E181: 6.6 | M181: Chránička km 0,055.0 - 0,061.0:6,00*1,10
A182: 23 | B182: 919735112R00 | C182: Řezání stávajícího živičného krytu tl. 5 - 10 cm | D182: m | E182: 36.2 | G182: =E182*F182 -> 0 | H182: 0 | I182: =E182*H182 -> 0 | J182: 0 | K182: =E182*J182 -> 0 | O182: 2 | AA182: 1 | AB182: 1 | AC182: 1 | AZ182: 1 | BA182: =IF(AZ182=1,G182,0) -> 0 | BB182: =IF(AZ182=2,G182,0) -> 0 | BC182: =IF(AZ182=3,G182,0) -> 0 | BD182: =IF(AZ182=4,G182,0) -> 0 | BE182: =IF(AZ182=5,G182,0) -> 0 | CA182: 1 | CB182: 1
C183: Vodovod - Řad 1 PE D 110x10,0 mm : | E183: 0 | M183: Vodovod - Řad 1 PE D 110x10,0 mm :
C184: km 0,000.0 - 0,009.7:9,70*2+0,80 | E184: 20.2 | M184: km 0,000.0 - 0,009.7:9,70*2+0,80
C185: km 0,038.0 - 0,042.0:4,00*2 | E185: 8 | M185: km 0,038.0 - 0,042.0:4,00*2
C186: VP pro čp. 60 PE D 32x3,0 mm:4,00*2 | E186: 8 | M186: VP pro čp. 60 PE D 32x3,0 mm:4,00*2
A187: 24 | B187: 919735123R00 | C187: Řezání stávajícího betonového krytu tl. 10 - 15 cm | D187: m | E187: 5 | G187: =E187*F187 -> 0 | H187: 0 | I187: =E187*H187 -> 0 | J187: 0 | K187: =E187*J187 -> 0 | O187: 2 | AA187: 1 | AB187: 1 | AC187: 1 | AZ187: 1 | BA187: =IF(AZ187=1,G187,0) -> 0 | BB187: =IF(AZ187=2,G187,0) -> 0 | BC187: =IF(AZ187=3,G187,0) -> 0 | BD187: =IF(AZ187=4,G187,0) -> 0 | BE187: =IF(AZ187=5,G187,0) -> 0 | CA187: 1 | CB187: 1
C188: Vodovod - Řad 1 PE D 110x10,0 mm km 0,000.0 - 0,120.0: | E188: 0 | M188: Vodovod - Řad 1 PE D 110x10,0 mm km 0,000.0 - 0,120.0:
C189: VP pro čp. 60 PE D 32x3,0 mm:2,50*2 | E189: 5 | M189: VP pro čp. 60 PE D 32x3,0 mm:2,50*2
A190: 25 | B190: 979082113RSZ | C190: Vodorovná doprava suti po suchu na skládku zhotovitele | D190: t | E190: 43.9189 | G190: =E190*F190 -> 0 | H190: 0 | I190: =E190*H190 -> 0 | J190: 0 | K190: =E190*J190 -> 0 | O190: 2 | AA190: 1 | AB190: 1 | AC190: 1 | AZ190: 1 | BA190: =IF(AZ190=1,G190,0) -> 0 | BB190: =IF(AZ190=2,G190,0) -> 0 | BC190: =IF(AZ190=3,G190,0) -> 0 | BD190: =IF(AZ190=4,G190,0) -> 0 | BE190: =IF(AZ190=5,G190,0) -> 0 | CA190: 1 | CB190: 1
A191: 26 | B191: 979089001R00 | C191: Poplatek za skládku stavební suti štěrky z komunikací, skupina odpadu 010408 | D191: t | E191: 26.1096 | G191: =E191*F191 -> 0 | H191: 0 | I191: =E191*H191 -> 0 | J191: 0 | K191: =E191*J191 -> 0 | O191: 2 | AA191: 1 | AB191: 1 | AC191: 1 | AZ191: 1 | BA191: =IF(AZ191=1,G191,0) -> 0 | BB191: =IF(AZ191=2,G191,0) -> 0 | BC191: =IF(AZ191=3,G191,0) -> 0 | BD191: =IF(AZ191=4,G191,0) -> 0 | BE191: =IF(AZ191=5,G191,0) -> 0 | CA191: 1 | CB191: 1
A192: 27 | B192: 979990103R00 | C192: Poplatek za skládku stavební suti beton, skupina odpadu 170101 | D192: t | E192: 0.864 | G192: =E192*F192 -> 0 | H192: 0 | I192: =E192*H192 -> 0 | J192: 0 | K192: =E192*J192 -> 0 | O192: 2 | AA192: 1 | AB192: 1 | AC192: 1 | AZ192: 1 | BA192: =IF(AZ192=1,G192,0) -> 0 | BB192: =IF(AZ192=2,G192,0) -> 0 | BC192: =IF(AZ192=3,G192,0) -> 0 | BD192: =IF(AZ192=4,G192,0) -> 0 | BE192: =IF(AZ192=5,G192,0) -> 0 | CA192: 1 | CB192: 1
A193: 28 | B193: 979999995R00 | C193: Poplatek za reciklaci asfaltu, kusovost do 1600cm2 skupina 170302 | D193: t | E193: 16.9453 | G193: =E193*F193 -> 0 | H193: 0 | I193: =E193*H193 -> 0 | J193: 0 | K193: =E193*J193 -> 0 | O193: 2 | AA193: 1 | AB193: 1 | AC193: 1 | AZ193: 1 | BA193: =IF(AZ193=1,G193,0) -> 0 | BB193: =IF(AZ193=2,G193,0) -> 0 | BC193: =IF(AZ193=3,G193,0) -> 0 | BD193: =IF(AZ193=4,G193,0) -> 0 | BE193: =IF(AZ193=5,G193,0) -> 0 | CA193: 1 | CB193: 1
C194: Položka je určena pro suť o velikosti kusu do 30x30 cm (technologický materiál určený k recyklaci). | L194: Položka je určena pro suť o velikosti kusu do 30x30 cm (technologický materiál určený k recyklaci). | O194: 3
A195: 29 | B195: 286134137.R | C195: Trubka tlaková AQUALINE RC1 PE100 225x20,5 mm PN10 tyče L=6/12 m včetně vymezovacích prvků dle PD | D195: m | E195: 27.5 | G195: =E195*F195 -> 0 | H195: 0.00667 | I195: =E195*H195 -> 0.183425 | K195: =E195*J195 -> 0 | O195: 2 | AA195: 3 | AB195: 1 | AC195: 286134137.R | AZ195: 1 | BA195: =IF(AZ195=1,G195,0) -> 0 | BB195: =IF(AZ195=2,G195,0) -> 0 | BC195: =IF(AZ195=3,G195,0) -> 0 | BD195: =IF(AZ195=4,G195,0) -> 0 | BE195: =IF(AZ195=5,G195,0) -> 0 | CA195: 3 | CB195: 1
C196: Vodovodní PE tlaková trubka AQUALINE RC1 dle normy EN 12 201-2 | L196: Vodovodní PE tlaková trubka AQUALINE RC1 dle normy EN 12 201-2 | O196: 3
C197: Jednovrstvá - celý průřez stěny z PE 100RC | L197: Jednovrstvá - celý průřez stěny z PE 100RC | O197: 3
C198: Černá s modrými pruhy (doprava pitné a užitkové vody) | L198: Černá s modrými pruhy (doprava pitné a užitkové vody) | O198: 3
C199: Použití: vhodná do otevřeného výkopu bez pískového lože (možnost bodového zatížení) a pro méně náročné metody bezvýkopové pokládky | L199: Použití: vhodná do otevřeného výkopu bez pískového lože (možnost bodového zatížení) a pro méně náročné metody bezvýkopové pokládky | O199: 3
C200: Tyč 6 m/12 m | L200: Tyč 6 m/12 m | O200: 3
C201: Součástí dodávky chráničky je i osazení a dodávka kluzných a vymezovacích objímek a koncových manžet v provedení dle projektové dokumentace v.č.D.5.7. | L201: Součástí dodávky chráničky je i osazení a dodávka kluzných a vymezovacích objímek a koncových manžet v provedení dle projektové dokumentace v.č.D.5.7. | O201: 3
C202: Vodovod - Řad 1 PE D 110x10,0 mm: | E202: 0 | M202: Vodovod - Řad 1 PE D 110x10,0 mm:
... 413 more rows

Sheet OaVNS
A1: Položkový rozpočet
A3: Stavba : | C3: 3392 Chuchelna – optimalizace vodovodní soustavyS | E3: Rozpočet: | F3: OaVNS
A4: Objekt : | C4: 300 Rekonstrukce vodovodu
A6: P.č. | B6: Číslo položky | C6: Název položky | D6: MJ | E6: množství | F6: cena / MJ | G6: celkem (Kč) | H6: Jednotková hmotnost | I6: Celková hmotnost | J6: Jednotková dem.hmot. | K6: Celková dem.hmot.
A7: Díl: | B7: 950 | C7: Ostatní náklady stavby
A8: 1 | B8: 950 99-0001.ONS | C8: Zajištění prostoru a vybudování zařízení staveniště včetně potřebných staveništních komunikací | D8: soubor | E8: 1 | G8: =SUM(E8*F8) -> 0 | H8: 0.00869 | I8: =E8*H8 -> 0.00869 | J8: 0 | K8: =E8*J8 -> 0 | BN8: 1 | BO8: 1
A9: 2 | B9: 950 99-0003.ONS | C9: Zajištění bezpečnosti při provádění stavby ve smyslu bezpečnosti práce i ochrany životního prostředí a zeleně | D9: soubor | E9: 1 | G9: =SUM(E9*F9) -> 0
A10: 3 | B10: 950 99-0005.ONS | C10: Vytýčení stavby a hranic pozemků při provádění stavby | D10: soubor | E10: 1 | G10: 0
A11: 4 | B11: 950 99-0006.ONS | C11: Zajištění včasného oznámení o zahájení prací majitelům pozemků a správců sítí dotčených stavbou | D11: soubor | E11: 1 | G11: 0
A12: 5 | B12: 950 99-0007.ONS | C12: Spolupráce s vlastníky pozemků při případném uvolnění pozemků pro stavbu (např. skládky osobního materiálu vlastníků) | D12: soubor | E12: 1 | G12: 0 | H12: 0.02478 | I12: =E12*H12 -> 0.02478 | J12: 0 | K12: =E12*J12 -> 0 | BN12: 1 | BO12: 1
A13: 6 | B13: 950 99-0008.ONS | C13: Zajištění vytýčení podzemních zařízení, a v případě jejich křížení či souběhu v otevřeném výkopu, jejich písemné předání zpět jejich správcům před zásypem | D13: soubor | E13: 1 | G13: 0
A14: 7 | B14: 950 99-0009.ONS | C14: Vypracování a projednání návrhu dočasných dopravních opatření (případně i po etapách dle zvoleného postupu prací zhotovitelem) | D14: soubor | E14: 1 | G14: 0
A15: 8 | B15: 950 99-0010.ONS | C15: Zajištění povolení zvláštního užívání komunikací v souladu s postupem výstavby,včetně správních poplatků a povolení k užívání dalších, stavbou dotčených pozemků (skládky materiálu, mezideponie atd.) | D15: soubor | E15: 1 | G15: 0
A16: 9 | B16: 950 99-0011.ONS | C16: Zřízení, údržba a likvidace dopravního opatření po dobu realizace stavby (případně i po etapách dle zvoleného postupu prací zhotovitelem) | D16: soubor | E16: 1 | G16: 0 | H16: 0 | I16: =E16*H16 -> 0 | J16: 0 | K16: =E16*J16 -> 0 | BN16: 1 | BO16: 1
A17: 10 | B17: 950 99-0013.ONS | C17: Zajištění činnosti odpovědného geodeta zhotovitele | D17: soubor | E17: 1 | G17: 0
A18: 11 | B18: 950 99-0014.ONS | C18: Zajištění činnosti odpovědného geologa zhotovitele | D18: soubor | E18: 1 | G18: 0
A19: 12 | B19: 950 99-0015.ONS | C19: Zajištění čistoty na staveništi a v jeho okolí, zajištění každodenního čištění komunikací dotčených provozem zhotovitele | D19: soubor | E19: 1 | G19: 0
A20: 13 | B20: 950 99-0016.ONS | C20: Fotodokumentace průběhu díla; zhotovitel zajistí a předá objednateli průběžnou fotodokumentaci realizace díla. Fotodokumentace bude dokladovat průběh díla a bude zejména dokumentovat části stavby a konstrukce před jejich zakrytím | D20: soubor | E20: 1 | G20: 0
A21: 14 | B21: 950 99-0017.ONS | C21: Péče o nepředané objekty nebo jejich části a konstrukce stavby, jejich ošetřování a nutný rozsah pojištění | D21: soubor | E21: 1 | G21: 0 | H21: 0 | I21: =E21*H21 -> 0 | J21: 0 | K21: =E21*J21 -> 0 | BN21: 1 | BO21: 1
A22: 15 | B22: 950 99-0018.ONS | C22: Zkoušky hutnění komunikací a rýh dle ČSN a EN | D22: soubor | E22: 1 | G22: 0
A23: 16 | B23: 950 99-0021.ONS | C23: Inženýrská a kompletační činnost zhotovitele | D23: soubor | E23: 1 | G23: 0
A24: 17 | B24: 950 99-0022.ONS | C24: Zhotovení dokumentace skutečného provedení díla | D24: soubor | E24: 1 | G24: 0
A25: 18 | B25: 950 99-0023.ONS | C25: Geodetické zaměření stavby | D25: soubor | E25: 1 | G25: 0
A26: 19 | B26: 950 99-0024.ONS | C26: Pasportizace objektů a komunikací před zahájením stavby včetně předání fotokokumentace investorovi stavby v digitální a tištěné podobě. | D26: soubor | E26: 1 | G26: 0
A27: 20 | B27: 950 99-0025.ONS | C27: Provizorní zásobování vodou (cisterny) | D27: soubor | E27: 1 | G27: 0
A28: 20 | B28: 950 99-0027.ONS | C28: Ostatní činnosti nutné ke zdárnému provedení díla, které jsou vymezeny zejména v technické specifikaci stavby | D28: soubor | E28: 1 | G28: 0
B30: ONS Celkem | G30: =SUM(G8:G28) -> 0
